{"text_format":"1","workbook":"xlsx","n_sheets":12,"sheets":["CUTTING LIST","Qbiss Screen H+ elements","Longitudinal L-corner elements ","Transversal L-corner elements","U-corner elements","Accessories","Fixing material data","Transport","Data 3 Accessories","UPDATES","Data 1","Data 2"],"not_rendered":{"charts":0,"images":95,"macros":1,"external_links":0,"defined_names":213,"comments":0,"pivot_tables":0},"unopened":[],"bounds":{"document_bytes":16777216,"sheet_cells":100000,"rows_first":2000,"rows_last":500,"rows_between":2000,"halvings":0,"cell_chars":16384,"cell_head_chars":4096},"cells_cut":0,"cells_raw":0,"read":"whole","date_system":"1900"}

{"sheet":"CUTTING LIST","index":0,"n_rows":50,"n_cols":14,"rows_kept":50,"cut":false,"hidden":false,"merged":[[49,0,49,13],[1,2,2,9],[9,0,9,1],[10,0,10,1],[46,4,46,6],[32,4,32,6],[32,9,32,10],[32,0,32,2],[22,0,22,2]]}
[null,null,null,null,null,null,null,null,null,null,null,"Date last saved:",null,{"$f":"ProfessorExcelLastSaveDate()","v":"2020-12-15T08:51:28"}]
[null,null,"INTERACTIVE CUTTING LIST",null,null,null,null,null,null,null,null,"Last saved by:",null,{"$f":"Lastauthor()","v":"Slanšek Matic"}]
[null,null,null,null,null,null,null,null,null,null,null,"Cutting list number:",null,"Insert"]
[null,null,null,null,null,null,null,null,"by Matic Slanšek",null,null,"Revision:",null,"Insert"]
[null,null,null,"Required fields"]
[]
[]
[]
[]
["Project name:",null,"Insert text"]
["Customer name:",null,"Insert text"]
["Customer order no:",null,"Insert text"]
["Certificate requirement:",null,"None"]
[]
[]
[]
[]
[]
[]
[]
[]
[]
["Qbiss Screen H+ elements"]
[]
[]
[]
[]
[]
[]
[]
[]
[]
["Longitudinal L-corner elements",null,null,null,"Transversal L-corner elements",null,null,null,null,"U-corner elements"]
[]
[]
[]
[]
[]
[]
[]
[]
[]
[]
[]
[]
[]
[null,"Accessories",null,null,"Transport"]
[]
[]
["Disclaimer: The main and only purpose of this document is to provide cutting list table with integrated restrictions to external designers. Trimo Group holds full copyrights on the information and details provided in this document. Professional care has been taken to ensure that information/details are accurate, correct, completed and not misleading, however Trimo, including its subsidiaries, does not accept responsibility or liability for errors or information, which is found to be misleading. Information/details in this document are for general purposes only. Use of it is on your own initiative and responsibility for compliance with local laws. In no event, will Trimo be liable for any loss or damage including without limitation, indirect orconsequential loss or damage, or any loss or damage whatsoever arising from loss profits arising out of or in connection with the use of this document. Any equation modification of this document or instuction text is stricty prohibited. All information issued by Trimo Group is subject to continuous development and information/details contained in this document are current at date of issue. It is user`s responsibility to obtain most up-to-date information from Trimo when information/details are used for any specific project. The last version of the document is available on www.trimo-group.com. Latest version of published document in English language prevails over other translated language documents."]

{"sheet":"Qbiss Screen H+ elements","index":1,"n_rows":78,"n_cols":38,"rows_kept":78,"cut":false,"hidden":false,"merged":[[34,1,34,2],[21,19,22,19],[3,21,4,22],[0,0,0,18],[21,1,22,1],[5,8,5,10],[7,0,7,3],[19,0,19,17],[20,4,20,6],[9,0,9,1],[21,11,21,14],[21,15,22,15],[2,3,2,14],[4,3,4,14],[3,3,3,14],[30,1,33,2],[2,17,2,18],[4,17,4,18],[5,17,5,18],[3,17,3,18],[5,15,5,16],[4,15,4,16],[3,15,3,16],[2,15,2,16],[21,18,22,18],[21,2,22,2],[21,4,21,6],[21,7,21,10],[21,17,22,17],[21,3,22,3]]}
["Qbiss Screen H+ Cutting list for rectangular elements",null,null,null,null,null,null,null,null,null,null,null,null,null,null,null,null,null,null,null,null,null,null,null,null,null,"INSTRUCTIONS"]
[null,null,null,null,null,null,null,null,null,null,null,null,null,null,null,null,null,null,null,null,null,null,null,null,null,null,"Follow steps"]
[null,"Project name:",null,{"$f":"IF('CUTTING LIST'!C10=\"INSERT TEXT\",\"Insert text on first page\",'CUTTING LIST'!C10)","v":"Insert text on first page"},null,null,null,null,null,null,null,null,null,null,null,"Date last saved:",null,{"$f":"'CUTTING LIST'!N1","v":"2020-12-15T08:51:28"},null,null,null,null,null,null,null,null,"1 PHASE / FACADE / BUILDING","Mark positioning of the element according to design shop drawings"]
[null,"Customer name:",null,{"$f":"IF('CUTTING LIST'!C11=\"INSERT TEXT\",\"Insert text on first page\",'CUTTING LIST'!C11)","v":"Insert text on first page"},null,null,null,null,null,null,null,null,null,null,null,"Last saved by:",null,{"$f":"'CUTTING LIST'!N2","v":"Slanšek Matic"},null,null,null,null,null,null,null,null,"2 ELEMENT REF","Mark element according to design shop drawings"]
[null,"Customer order no:",null,{"$f":"IF('CUTTING LIST'!C12=\"INSERT TEXT\",\"Insert text on first page\",'CUTTING LIST'!C12)","v":"Insert text on first page"},null,null,null,null,null,null,null,null,null,null,null,"Cutting list number:",null,{"$f":"IF('CUTTING LIST'!N3=\"Insert\",\"Insert text on first page\",'CUTTING LIST'!N3)","v":"Insert text on first page"},null,null,null,null,null,null,null,null,"3 QTY","Number of elements"]
[null,null,null,null,null,null,null,null,null,null,null,null,null,null,null,"Revision:",null,{"$f":"IF('CUTTING LIST'!N4=\"Insert\",\"Insert text of first page\",'CUTTING LIST'!N4)","v":"Insert text of first page"},null,null,null,null,null,null,null,null,"4 Core type","Honeycomb"]
[null,null,null,null,null,null,null,null,null,null,null,null,null,null,null,null,null,null,null,null,null,null,null,null,null,null,"5 Unit dimensions"]
["STEP 1:",null,null,null,null,null,null,"STEP 2:",null,null,null,null,null,null,null,null,null,null,null,null,null,null,null,null,null,null,null,"T-","element thickness [mm]: 50"]
["Select type of cladding system:",null,null,null,null,null,null,"Select joint option:",null,null,null,null,null,null,null,null,null,null,null,null,null,null,null,null,null,null,null,"M-","element module width [mm]: from 600 up to 1200"]
["Horizontal",null,null,null,null,null,null,null,null,null,null,null,{"$f":"INDEX('Data 1'!B19:G24,MATCH('Qbiss Screen H+ elements'!H10,'Data 1'!A19:A24,0),MATCH('Qbiss Screen H+ elements'!A10,'Data 1'!B18:G18,0))","v":{"$error":"#N/A"}},null,null,null,null,null,null,null,null,null,null,null,null,null,null,"R-","element length [mm]:  from 550 up to 6500"]
[null,null,null,null,null,null,null,null,null,null,null,null,null,null,null,null,null,null,null,null,null,null,null,null,null,null,null,null,"Element lenght is measured and scheduled between fixing (joint centres) - SEE PICTURES BELOW !!!"]
[]
[]
[]
[]
[]
[]
[]
[]
["STEP 3:"]
[1,2,3,4,5,null,null,6,7,8,9,10,11,12,13,14,15,16,17]
["PHASE / FACADE /","ELEMENT REF:","QTY:","Core type","UNIT DIMENSIONS [mm]",null,null,"EXTERNAL SKIN",null,null,null,"INTERNAL SKIN",null,null,null,"ELEMENT Type","FIXING POINT","Other notes","TOTAL [m2]","STATUS"]
["BUILDING",null,null,null,"T","M","R","Thickness [mm]","Colour","Profile","Coating","Thickness [mm]","Colour","Profile","Coating",null,"QTY",null,null,null,null,null,null,null,"M*QTY","Total fixing points"]
[null,null,null,"Honeycomb",50,null,null,0.7,null,"G",{"$f":"IFERROR(VLOOKUP(I24,'Data 2'!$A$1:$B$28,2,FALSE),\"\")","v":""},null,null,"G",null,13,null,null,{"$f":"C24*F24/1000*G24/1000","v":0},{"$f":"IF(OR($A$10=\"\",$H$10=\"\",C24=\"\",D24=\"\",E24=\"\",F24=\"\",G24=\"\",I24=\"\",L24=\"\",M24=\"\",N24=\"\",O24=\"\",P24=\"\",Q24=\"\"),\"Not OK\",\"OK\")","v":"Not OK"},null,null,null,null,{"$f":"C24*F24","v":0},{"$f":"Q24*C24","v":0}]
[]
[null,"TOTAL QTY",{"$f":"SUM(C24:C25)","v":0},null,null,null,null,null,null,null,null,null,null,null,null,null,null,"TOTAL m2 of facade elements",{"$f":"SUM(S24:S25)","v":0}]
[null,"Module x QTY [m]:",{"$f":"SUM(Y24:Y25)/1000","v":0},null,null,null,null,null,null,null,null,null,null,null,null,null,null,"TOTAL fixing points",{"$f":"SUM(Z24:Z25)","v":0}]
[]
[]
[null,"Required fields"]
[null,"Input data doesn't meet Qbiss Screen limitations - see INSTRUCTIONS on the right"]
[]
[]
[]
[null,"Automatically filled"]
[null,null,null,null,null,null,null,null,null,null,null,null,null,null,null,null,null,null,null,null,null,null,null,null,null,null,"6 External skin thickness","In case of Qbiss Screen H+ elements, to achieve perfect flatness, we always use 0,7 mm thick steel sheet"]
[null,null,null,null,null,null,null,null,null,null,null,null,null,null,null,null,null,null,null,null,null,null,null,null,null,null,"7 External skin colour","Select avaliable standard colours. Find more about standard colours from Qbiss Screen Book"]
[null,null,null,null,null,null,null,null,null,null,null,null,null,null,null,null,null,null,null,null,null,null,null,null,null,null,"8 External skin profile","All Qbiss Screen H+ elements have smooth Front-side steel sheet profile"]
[null,null,null,null,null,null,null,null,null,null,null,null,null,null,null,null,null,null,null,null,null,null,null,null,null,null,"9 External skin coating","Based on colour selection, steel sheet coating is selected automatically"]
[null,null,null,null,null,null,null,null,null,null,null,null,null,null,null,null,null,null,null,null,null,null,null,null,null,null,"10 Internal skin thickness","We always use 0,7 mm ot 0,675 mm thick steel sheet"]
[null,null,null,null,null,null,null,null,null,null,null,null,null,null,null,null,null,null,null,null,null,null,null,null,null,null,"11 Internal skin colour","Select avaliable standard colours. Find more about standard colours from Qbiss Screen Book"]
[null,null,null,null,null,null,null,null,null,null,null,null,null,null,null,null,null,null,null,null,null,null,null,null,null,null,"12 Internal skin profile","All Qbiss Screen H+ elements have smooth Back-side steel sheet profile"]
[null,null,null,null,null,null,null,null,null,null,null,null,null,null,null,null,null,null,null,null,null,null,null,null,null,null,"13 Internal skin coating","Considering project requirements, you can select what type of coating is appropriate. ",null,null,null,null,null,null,null,null,null,"SP - Polyester"]
[null,null,null,null,null,null,null,null,null,null,null,null,null,null,null,null,null,null,null,null,null,null,null,null,null,null,null,null,null,null,null,null,null,null,null,null,null,"PVDF - Polyvinylidene fluoride"]
[null,null,null,null,null,null,null,null,null,null,null,null,null,null,null,null,null,null,null,null,null,null,null,null,null,null,null,null,null,null,null,null,null,null,null,null,null,"PUR/PA - Polyurethane"]
[null,null,null,null,null,null,null,null,null,null,null,null,null,null,null,null,null,null,null,null,null,null,null,null,null,null,null,null,null,null,null,null,null,null,null,null,null,"PVC - Polyvinyl chloride"]
[null,null,null,null,null,null,null,null,null,null,null,null,null,null,null,null,null,null,null,null,null,null,null,null,null,null,"14 Element type","Qbiss Screen H+ uses element type 13."]
[]
[]
[]
[]
[]
[]
[]
[null,null,null,null,null,null,null,null,null,null,null,null,null,null,null,null,null,null,null,null,null,null,null,null,null,null,"15 Fixing point","Select quantity of fixing points on Qbiss Screen MW element according to structural calculation, made by Trimo technical support"]
[null,null,null,null,null,null,null,null,null,null,null,null,null,null,null,null,null,null,null,null,null,null,null,null,null,null,null,"Limitations: 2 < number of fixing points < 6",null,null,null,null,"(only on one side of the element)"]
[]
[]
[]
[]
[]
[]
[]
[]
[]
[]
[]
[]
[]
[]
[]
[]
[null,null,null,null,null,null,null,null,null,null,null,null,null,null,null,null,null,null,null,null,null,null,null,null,null,null,"Printscreen of structural calculation in SandStat"]
[]
[null,null,null,null,null,null,null,null,null,null,null,null,null,null,null,null,null,null,null,null,null,null,null,null,null,null,"16 Other notes"]
[null,null,null,null,null,null,null,null,null,null,null,null,null,null,null,null,null,null,null,null,null,null,null,null,null,null,"17 Total","Total amount of facade elements - automatically calculated"]
[null,null,null,null,null,null,null,null,null,null,null,null,null,null,null,null,null,null,null,null,null,null,null,null,null,null,"STATUS","OK","\"- element completely defined"]
[null,null,null,null,null,null,null,null,null,null,null,null,null,null,null,null,null,null,null,null,null,null,null,null,null,null,null,"Not OK","\"- Some caracteristics of the element are missing, please fulfill all required cells."]

{"sheet":"Longitudinal L-corner elements ","index":2,"n_rows":81,"n_cols":42,"rows_kept":81,"cut":false,"hidden":false,"merged":[[3,25,4,26],[21,10,21,13],[21,14,21,17],[21,1,22,1],[20,4,20,9],[5,11,5,13],[7,0,7,3],[19,0,19,21],[21,18,22,18],[21,21,22,21],[21,22,22,22],[4,3,4,18],[4,19,4,20],[21,23,22,23],[30,1,33,2],[4,21,4,22],[5,19,5,20],[5,21,5,22],[0,0,0,22],[2,3,2,18],[3,3,3,18],[2,19,2,20],[2,21,2,22],[3,19,3,20],[3,21,3,22],[21,2,22,2],[21,4,21,9],[8,9,8,10],[21,3,22,3]]}
["Qbiss Screen H+ Cutting list for Longitudinal L-corner elements",null,null,null,null,null,null,null,null,null,null,null,null,null,null,null,null,null,null,null,null,null,null,null,null,null,null,null,null,null,"INSTRUCTIONS"]
[null,null,null,null,null,null,null,null,null,null,null,null,null,null,null,null,null,null,null,null,null,null,null,null,null,null,null,null,null,null,"Follow steps"]
[null,"Project name:",null,{"$f":"IF('CUTTING LIST'!C10=\"INSERT TEXT\",\"Insert text on first page\",'CUTTING LIST'!C10)","v":"Insert text on first page"},null,null,null,null,null,null,null,null,null,null,null,null,null,null,null,"Date last saved:",null,{"$f":"'CUTTING LIST'!N1","v":"2020-12-15T08:51:28"},null,null,null,null,null,null,null,null,"1 PHASE / FACADE / BUILDING","Mark positioning of the element according to design shop drawings"]
[null,"Customer name:",null,{"$f":"IF('CUTTING LIST'!C11=\"INSERT TEXT\",\"Insert text on first page\",'CUTTING LIST'!C11)","v":"Insert text on first page"},null,null,null,null,null,null,null,null,null,null,null,null,null,null,null,"Last saved by:",null,{"$f":"'CUTTING LIST'!N2","v":"Slanšek Matic"},null,null,null,null,null,null,null,null,"2 ELEMENT REF","Mark element according to design shop drawings"]
[null,"Customer order no:",null,{"$f":"IF('CUTTING LIST'!C12=\"INSERT TEXT\",\"Insert text on first page\",'CUTTING LIST'!C12)","v":"Insert text on first page"},null,null,null,null,null,null,null,null,null,null,null,null,null,null,null,"Cutting list number:",null,{"$f":"IF('CUTTING LIST'!N3=\"Insert\",\"Insert text on first page\",'CUTTING LIST'!N3)","v":"Insert text on first page"},null,null,null,null,null,null,null,null,"3 QTY","Number of elements"]
[null,null,null,null,null,null,null,null,null,null,null,null,null,null,null,null,null,null,null,"Revision:",null,{"$f":"IF('CUTTING LIST'!N4=\"Insert\",\"Insert text on first page\",'CUTTING LIST'!N4)","v":"Insert text on first page"},null,null,null,null,null,null,null,null,"4 Core type","Honeycomb"]
[null,null,null,null,null,null,null,null,null,null,null,null,null,null,null,null,null,null,null,null,null,null,null,null,null,null,null,null,null,null,"5 Unit dimensions"]
["STEP 1:",null,null,null,null,null,null,null,null,null,null,null,null,null,null,null,null,null,null,null,null,null,null,null,null,null,null,null,null,null,"T-","element thickness [mm]: 50"]
["Type of installation:",null,null,null,null,null,null,null,null,"Marking corner's sides",null,null,null,null,null,null,null,null,null,null,null,null,null,null,null,null,null,null,null,null,"M-","element module width [mm]: from 600 up to 1200",null,null,null,null,null,"M=A+B"]
["Longitudinal_corner",null,null,null,null,null,null,null,null,null,null,null,null,null,null,null,null,null,null,null,null,null,null,null,null,null,null,null,null,null,"R-","element length [mm]:  from 550 up to 6500"]
[null,null,null,null,null,null,null,null,null,null,null,null,null,null,null,null,null,null,null,null,null,null,null,null,null,null,null,null,null,null,null,"Element lenght is measured and scheduled between fixing (joint centres) - SEE PICTURES BELOW !!!"]
[null,null,null,null,null,null,null,null,null,null,null,null,null,null,null,null,null,null,null,null,null,null,null,null,null,null,null,null,null,null,"A-","one side of corner element"]
[null,null,null,null,null,null,null,null,null,null,null,null,null,null,null,null,null,null,null,null,null,null,null,null,null,null,null,null,null,null,"B-","other side of corner element"]
[null,null,null,null,null,null,null,null,null,null,null,null,null,null,null,null,null,null,null,null,null,null,null,null,null,null,null,null,null,null,"Angle [α]-","80 degrees to 175 degrees"]
[null,null,null,null,null,null,null,null,null,null,null,null,null,null,null,null,null,null,null,null,null,null,null,null,null,null,null,null,null,null,"Limitations:","Amin and Bmin = 300 mm"]
[null,null,null,null,null,null,null,null,null,null,null,null,null,null,null,null,null,null,null,null,null,null,null,null,null,null,null,null,null,null,null,"Amax and Bmax = 900 mm"]
[]
[]
[]
["STEP 2:"]
[1,2,3,4,5,null,null,null,null,null,6,7,8,9,10,11,12,13,14,15,16,17,18]
["PHASE / FACADE /","ELEMENT REF:","QTY:","Core type","UNIT DIMENSIONS [mm]",null,null,null,null,null,"EXTERNAL SKIN",null,null,null,"INTERNAL SKIN",null,null,null,"ELEMENT Type","Installation","FIXING POINT","Other notes","TOTAL [m2]","STATUS"]
["BUILDING",null,null,null,"T","M","R","A","B","Angle","Thickness [mm]","Colour","Profile","Coating","Thickness [mm]","Colour","Profile","Coating",null,"direction","QTY",null,null,null,null,null,null,null,"M*QTY","Total fixing points"]
[null,null,null,"Honeycomb",50,{"$f":"H24+I24","v":0},null,null,null,null,{"$f":"Thickness_of_external_steel_sheet","v":0.7},null,{"$f":"External_steel_sheet_profilation","v":"G"},{"$f":"IFERROR(VLOOKUP(L24,'Data 2'!$A$1:$B$28,2,FALSE),\"\")","v":""},null,null,"G",null,13,{"$f":"IF(ISNUMBER(SEARCH(\"horizontal\",'Qbiss Screen H+ elements'!$A$10)),\"horizontal\",\"vertical\")","v":"horizontal"},null,null,{"$f":"C24*F24/1000*G24/1000","v":0},{"$f":"IF(OR($A$10=\"\",C24=\"\",D24=\"\",E24=\"\",G24=\"\",H24=\"\",I24=\"\",J24=\"\",L24=\"\",O24=\"\",P24=\"\",Q24=\"\",R24=\"\",S24=\"\",U24=\"\"),\"Not OK\",\"OK\")","v":"Not OK"},null,null,null,null,{"$f":"C24*F24","v":0},{"$f":"U24*C24","v":0}]
[]
[null,"TOTAL QTY",{"$f":"SUM(C24:C25)","v":0},null,null,null,null,null,null,null,null,null,null,null,null,null,null,null,null,null,null,"TOTAL m2 of facade elements",{"$f":"SUM(W24:W25)","v":0}]
[null,"Module x QTY [m]:",{"$f":"SUM(AC24:AC25)/1000","v":0},null,null,null,null,null,null,null,null,null,null,null,null,null,null,null,null,null,null,"TOTAL fixing points",{"$f":"SUM(AD24:AD25)","v":0}]
[]
[]
[null,"Required fields"]
[null,"Input data doesn't meet Qbiss Screen limitations - see INSTRUCTIONS on the right"]
[]
[]
[]
[null,"Automatically filled"]
[]
[]
[]
[null,null,null,null,null,null,null,null,null,null,null,null,null,null,null,null,null,null,null,null,null,null,null,null,null,null,null,null,null,null,"6 External skin thickness","In case of Qbiss Screen H+ elements, to achieve perfect flatness, we always use 0,7 mm thick steel sheet"]
[null,null,null,null,null,null,null,null,null,null,null,null,null,null,null,null,null,null,null,null,null,null,null,null,null,null,null,null,null,null,"7 External skin colour","Select avaliable standard colours. Find more about standard colours from Qbiss Screen Book"]
[null,null,null,null,null,null,null,null,null,null,null,null,null,null,null,null,null,null,null,null,null,null,null,null,null,null,null,null,null,null,"8 External skin profile","All Qbiss Screen H+ elements have smooth Front-side steel sheet profile"]
[null,null,null,null,null,null,null,null,null,null,null,null,null,null,null,null,null,null,null,null,null,null,null,null,null,null,null,null,null,null,"9 External skin coating","Based on colour selection, steel sheet coating is selected automatically"]
[null,null,null,null,null,null,null,null,null,null,null,null,null,null,null,null,null,null,null,null,null,null,null,null,null,null,null,null,null,null,"10 Internal skin thickness","We always use 0,7 mm ot 0,675 mm thick steel sheet"]
[null,null,null,null,null,null,null,null,null,null,null,null,null,null,null,null,null,null,null,null,null,null,null,null,null,null,null,null,null,null,"11 Internal skin colour","Select avaliable standard colours. Find more about standard colours from Qbiss Screen Book"]
[null,null,null,null,null,null,null,null,null,null,null,null,null,null,null,null,null,null,null,null,null,null,null,null,null,null,null,null,null,null,"12 Internal skin profile","All Qbiss Screen H+ elements have smooth Back-side steel sheet profile"]
[null,null,null,null,null,null,null,null,null,null,null,null,null,null,null,null,null,null,null,null,null,null,null,null,null,null,null,null,null,null,"13 Internal skin coating","Considering project requirements, you can select what type of coating is appropriate. ",null,null,null,null,null,null,null,null,null,"SP - Polyester"]
[null,null,null,null,null,null,null,null,null,null,null,null,null,null,null,null,null,null,null,null,null,null,null,null,null,null,null,null,null,null,null,null,null,null,null,null,null,null,null,null,null,"PVDF - Polyvinylidene fluoride"]
[null,null,null,null,null,null,null,null,null,null,null,null,null,null,null,null,null,null,null,null,null,null,null,null,null,null,null,null,null,null,null,null,null,null,null,null,null,null,null,null,null,"PUR/PA - Polyurethane"]
[null,null,null,null,null,null,null,null,null,null,null,null,null,null,null,null,null,null,null,null,null,null,null,null,null,null,null,null,null,null,null,null,null,null,null,null,null,null,null,null,null,"PVC - Polyvinyl chloride"]
[null,null,null,null,null,null,null,null,null,null,null,null,null,null,null,null,null,null,null,null,null,null,null,null,null,null,null,null,null,null,"14 Element type","Qbiss Screen H+ uses element type 13."]
[]
[]
[]
[]
[]
[]
[null,null,null,null,null,null,null,null,null,null,null,null,null,null,null,null,null,null,null,null,null,null,null,null,null,null,null,null,null,null,"15 Installation direction: The same as orientation of elements. Fulfilled automatically"]
[null,null,null,null,null,null,null,null,null,null,null,null,null,null,null,null,null,null,null,null,null,null,null,null,null,null,null,null,null,null,"16 Fixing point","Select quantity of fixing points on Qbiss element according to structural calculation, made by Trimo technical support"]
[null,null,null,null,null,null,null,null,null,null,null,null,null,null,null,null,null,null,null,null,null,null,null,null,null,null,null,null,null,null,null,"Limitations: 2 < number of fixing points < 6",null,null,null,"(only on one side of the element)"]
[]
[]
[]
[]
[]
[]
[]
[]
[]
[]
[]
[]
[]
[]
[]
[]
[null,null,null,null,null,null,null,null,null,null,null,null,null,null,null,null,null,null,null,null,null,null,null,null,null,null,null,null,null,null,"Printscreen of structural calculation in SandStat"]
[]
[null,null,null,null,null,null,null,null,null,null,null,null,null,null,null,null,null,null,null,null,null,null,null,null,null,null,null,null,null,null,"17  Other notes"]
[null,null,null,null,null,null,null,null,null,null,null,null,null,null,null,null,null,null,null,null,null,null,null,null,null,null,null,null,null,null,"18 Total","Total amount of facade elements - calculated automatically"]
[null,null,null,null,null,null,null,null,null,null,null,null,null,null,null,null,null,null,null,null,null,null,null,null,null,null,null,null,null,null,"STATUS","OK","\"- element completely defined"]
[null,null,null,null,null,null,null,null,null,null,null,null,null,null,null,null,null,null,null,null,null,null,null,null,null,null,null,null,null,null,null,"Not OK","\"- Some caracteristics of the element are missing, please fulfill all required cells."]

{"sheet":"Transversal L-corner elements","index":3,"n_rows":81,"n_cols":42,"rows_kept":81,"cut":false,"hidden":false,"merged":[[34,1,34,2],[21,23,22,23],[30,1,33,2],[21,2,22,2],[21,4,21,9],[21,10,21,13],[21,14,21,17],[21,1,22,1],[21,3,22,3],[23,37,23,39],[8,9,8,10],[21,18,22,18],[21,21,22,21],[21,22,22,22],[22,37,22,39],[7,0,7,3],[9,4,18,5],[19,0,19,21],[20,4,20,9],[5,19,5,20],[5,21,5,22],[0,0,0,22],[2,19,2,20],[5,11,5,13],[4,3,4,18],[3,3,3,18],[2,3,2,18],[2,21,2,22],[3,19,3,20],[3,21,3,22],[4,19,4,20],[4,21,4,22]]}
["Qbiss Screen H+ Cutting list for Transversal L-corner elements",null,null,null,null,null,null,null,null,null,null,null,null,null,null,null,null,null,null,null,null,null,null,null,null,null,null,null,null,null,"INSTRUCTIONS"]
[null,null,null,null,null,null,null,null,null,null,null,null,null,null,null,null,null,null,null,null,null,null,null,null,null,null,null,null,null,null,"Follow steps"]
[null,"Project name:",null,{"$f":"IF('CUTTING LIST'!C10=\"INSERT TEXT\",\"Insert text on first page\",'CUTTING LIST'!C10)","v":"Insert text on first page"},null,null,null,null,null,null,null,null,null,null,null,null,null,null,null,"Date last saved:",null,{"$f":"'CUTTING LIST'!N1","v":"2020-12-15T08:51:28"},null,null,null,null,null,null,null,null,"1 PHASE / FACADE / BUILDING","Mark positioning of the element according to design shop drawings"]
[null,"Customer name:",null,{"$f":"IF('CUTTING LIST'!C11=\"INSERT TEXT\",\"Insert text on first page\",'CUTTING LIST'!C11)","v":"Insert text on first page"},null,null,null,null,null,null,null,null,null,null,null,null,null,null,null,"Last saved by:",null,{"$f":"'CUTTING LIST'!N2","v":"Slanšek Matic"},null,null,null,null,null,null,null,null,"2 ELEMENT REF","Mark element according to design shop drawings"]
[null,"Customer order no:",null,{"$f":"IF('CUTTING LIST'!C12=\"INSERT TEXT\",\"Insert text on first page\",'CUTTING LIST'!C12)","v":"Insert text on first page"},null,null,null,null,null,null,null,null,null,null,null,null,null,null,null,"Cutting list number:",null,{"$f":"IF('CUTTING LIST'!N3=\"Insert\",\"Insert text on first page\",'CUTTING LIST'!N3)","v":"Insert text on first page"},null,null,null,null,null,null,null,null,"3 QTY","Number of elements"]
[null,null,null,null,null,null,null,null,null,null,null,null,null,null,null,null,null,null,null,"Revision:",null,{"$f":"IF('CUTTING LIST'!N4=\"Insert\",\"Insert text on first page\",'CUTTING LIST'!N4)","v":"Insert text on first page"},null,null,null,null,null,null,null,null,"4 Core type","Honeycomb"]
[null,null,null,null,null,null,null,null,null,null,null,null,null,null,null,null,null,null,null,null,null,null,null,null,null,null,null,null,null,null,"5 Unit dimensions"]
["STEP 1:",null,null,null,null,null,null,null,null,null,null,null,null,null,null,null,null,null,null,null,null,null,null,null,null,null,null,null,null,null,"T-","element thickness [mm]: 50"]
["Type of installation:",null,null,null,null,null,null,null,null,"Marking corner's sides",null,null,null,null,null,null,null,null,null,null,null,null,null,null,null,null,null,null,null,null,"M-","element module width [mm]: from 600 up to 1200"]
["Transversal_corner",null,null,null,null,null,null,null,null,null,null,null,null,null,null,null,null,null,null,null,null,null,null,null,null,null,null,null,null,null,"R-","element length [mm]:  from 550 up to 2000"]
[null,null,null,null,null,null,null,null,null,null,null,null,null,null,null,null,null,null,null,null,null,null,null,null,null,null,null,null,null,null,null,"Element lenght is measured and scheduled between fixing (joint centres) - SEE PICTURES BELOW !!!"]
[null,null,null,null,null,null,null,null,null,null,null,null,null,null,null,null,null,null,null,null,null,null,null,null,null,null,null,null,null,null,"A-","one side of corner element"]
[null,null,null,null,null,null,null,null,null,null,null,null,null,null,null,null,null,null,null,null,null,null,null,null,null,null,null,null,null,null,"B-","other side of corner element"]
[null,null,null,null,null,null,null,null,null,null,null,null,null,null,null,null,null,null,null,null,null,null,null,null,null,null,null,null,null,null,"Angle [α]-","70 degrees to 175 degrees"]
[null,null,null,null,null,null,null,null,null,null,null,null,null,null,null,null,null,null,null,null,null,null,null,null,null,null,null,null,null,null,"Limitations:","Amin and Bmin > 200 mm"]
[null,null,null,null,null,null,null,null,null,null,null,null,null,null,null,null,null,null,null,null,null,null,null,null,null,null,null,null,null,null,null,"Amax and Bmax < 1000 mm"]
[null,null,null,null,null,null,null,null,null,null,null,null,null,null,null,null,null,null,null,null,null,null,null,null,null,null,null,null,null,null,null,"550mm < R = A + B < 2000mm"]
[]
[]
["STEP 2:"]
[1,2,3,4,5,null,null,null,null,null,6,7,8,9,10,11,12,13,14,15,16,17,18]
["PHASE / FACADE /","ELEMENT REF:","QTY:","Core type","UNIT DIMENSIONS [mm]",null,null,null,null,null,"EXTERNAL SKIN",null,null,null,"INTERNAL SKIN",null,null,null,"ELEMENT Type","Installation","FIXING POINT","Other notes","TOTAL [m2]","STATUS"]
["BUILDING",null,null,null,"T","M","R","A","B","Angle","Thickness [mm]","Colour","Profile","Coating","Thickness [mm]","Colour","Profile","Coating",null,"direction","QTY",null,null,null,null,null,null,null,"M*QTY","Total fixing point QTY",null,null,null,null,null,null,null,"Marking corner's sides"]
[null,null,null,"Honeycomb",50,null,{"$f":"H24+I24","v":0},null,null,null,{"$f":"Thickness_of_external_steel_sheet","v":0.7},null,"G",{"$f":"IFERROR(VLOOKUP(L24,'Data 2'!$A$1:$B$28,2,FALSE),\"\")","v":""},null,null,"G",null,13,{"$f":"IF(ISNUMBER(SEARCH(\"horizontal\",'Qbiss Screen H+ elements'!$A$10)),\"horizontal\",\"vertical\")","v":"horizontal"},null,null,{"$f":"C24*F24/1000*G24/1000","v":0},{"$f":"IF(OR($A$10=\"\",C24=\"\",D24=\"\",E24=\"\",F24=\"\",H24=\"\",I24=\"\",J24=\"\",L24=\"\",O24=\"\",P24=\"\",Q24=\"\",R24=\"\",S24=\"\",U24=\"\"),\"Not OK\",\"OK\")","v":"Not OK"},null,null,null,null,{"$f":"C24*F24","v":0},{"$f":"U24*C24","v":0}]
[]
[null,"TOTAL QTY",{"$f":"SUM(C24:C25)","v":0},null,null,null,null,null,null,null,null,null,null,null,null,null,null,null,null,null,null,"TOTAL m2 of facade elements",{"$f":"SUM(W24:W25)","v":0}]
[null,"Module x QTY [m]:",{"$f":"SUM(AC24:AC25)/1000","v":0},null,null,null,null,null,null,null,null,null,null,null,null,null,null,null,null,null,null,"TOTAL fixing points",{"$f":"SUM(AD24:AD25)","v":0}]
[]
[]
[null,"Required fields"]
[null,"Input data doesn't meet Qbiss One limitations - see INSTRUCTIONS on the right"]
[]
[]
[]
[null,"Automatically filled"]
[]
[]
[]
[]
[null,null,null,null,null,null,null,null,null,null,null,null,null,null,null,null,null,null,null,null,null,null,null,null,null,null,null,null,null,null,"6 External skin thickness","In case of Qbiss Screen H elements, to achieve perfect flatness, we always use 0,7 mm thick steel sheet"]
[null,null,null,null,null,null,null,null,null,null,null,null,null,null,null,null,null,null,null,null,null,null,null,null,null,null,null,null,null,null,"7 External skin colour","Select avaliable standard colours. Find more about standard colours from Qbiss Screen Book"]
[null,null,null,null,null,null,null,null,null,null,null,null,null,null,null,null,null,null,null,null,null,null,null,null,null,null,null,null,null,null,"8 External skin profile","All Qbiss Screen H elements have smooth Front-side steel sheet profile"]
[null,null,null,null,null,null,null,null,null,null,null,null,null,null,null,null,null,null,null,null,null,null,null,null,null,null,null,null,null,null,"9 External skin coating","Based on colour selection, steel sheet coating is selected automatically"]
[null,null,null,null,null,null,null,null,null,null,null,null,null,null,null,null,null,null,null,null,null,null,null,null,null,null,null,null,null,null,"10 Internal skin thickness","We always use 0,7 mm ot 0,675 mm thick steel sheet"]
[null,null,null,null,null,null,null,null,null,null,null,null,null,null,null,null,null,null,null,null,null,null,null,null,null,null,null,null,null,null,"11 Internal skin colour","Select avaliable standard colours. Find more about standard colours from Qbiss Screen Book"]
[null,null,null,null,null,null,null,null,null,null,null,null,null,null,null,null,null,null,null,null,null,null,null,null,null,null,null,null,null,null,"12 Internal skin profile","All Qbiss Screen H elements have smooth Back-side steel sheet profile"]
[null,null,null,null,null,null,null,null,null,null,null,null,null,null,null,null,null,null,null,null,null,null,null,null,null,null,null,null,null,null,"13 Internal skin coating","Considering project requirements, you can choose what type of coating is appropriate. ",null,null,null,null,null,null,null,null,null,"SP - Polyester"]
[null,null,null,null,null,null,null,null,null,null,null,null,null,null,null,null,null,null,null,null,null,null,null,null,null,null,null,null,null,null,null,null,null,null,null,null,null,null,null,null,null,"PVDF - Polyvinylidene fluoride"]
[null,null,null,null,null,null,null,null,null,null,null,null,null,null,null,null,null,null,null,null,null,null,null,null,null,null,null,null,null,null,null,null,null,null,null,null,null,null,null,null,null,"PUR/PA - Polyurethane"]
[null,null,null,null,null,null,null,null,null,null,null,null,null,null,null,null,null,null,null,null,null,null,null,null,null,null,null,null,null,null,null,null,null,null,null,null,null,null,null,null,null,"PVC - Polyvinyl chloride"]
[null,null,null,null,null,null,null,null,null,null,null,null,null,null,null,null,null,null,null,null,null,null,null,null,null,null,null,null,null,null,"14 Element type","Qbiss Screen H+ uses element type 13."]
[]
[]
[]
[]
[]
[]
[null,null,null,null,null,null,null,null,null,null,null,null,null,null,null,null,null,null,null,null,null,null,null,null,null,null,null,null,null,null,"15 Installation direction: The same as orientation of elements. Fulfilled automatically"]
[null,null,null,null,null,null,null,null,null,null,null,null,null,null,null,null,null,null,null,null,null,null,null,null,null,null,null,null,null,null,"16 Fixing point","Select quantity of fixing points on Qbiss element according to structural calculation, made by Trimo technical support"]
[null,null,null,null,null,null,null,null,null,null,null,null,null,null,null,null,null,null,null,null,null,null,null,null,null,null,null,null,null,null,null,"Limitations: 2 < number of fixing points < 6",null,null,null,"(only on one side of the element)"]
[]
[]
[]
[]
[]
[]
[]
[]
[]
[]
[]
[]
[]
[]
[]
[]
[null,null,null,null,null,null,null,null,null,null,null,null,null,null,null,null,null,null,null,null,null,null,null,null,null,null,null,null,null,null,"Printscreen of structural calculation in SandStat"]
[null,null,null,null,null,null,null,null,null,null,null,null,null,null,null,null,null,null,null,null,null,null,null,null,null,null,null,null,null,null,"17  Other notes"]
[null,null,null,null,null,null,null,null,null,null,null,null,null,null,null,null,null,null,null,null,null,null,null,null,null,null,null,null,null,null,"18 Total","Total amount of facade elements - calculated automatically"]
[null,null,null,null,null,null,null,null,null,null,null,null,null,null,null,null,null,null,null,null,null,null,null,null,null,null,null,null,null,null,"STATUS","OK","\"- element completely defined"]
[null,null,null,null,null,null,null,null,null,null,null,null,null,null,null,null,null,null,null,null,null,null,null,null,null,null,null,null,null,null,null,"Not OK","\"- Some caracteristics of the element are missing, please fulfill all required cells."]

{"sheet":"U-corner elements","index":4,"n_rows":82,"n_cols":43,"rows_kept":82,"cut":false,"hidden":false,"merged":[[21,24,22,24],[0,0,0,23],[21,16,21,19],[21,20,22,20],[21,1,22,1],[20,4,20,11],[5,13,5,15],[7,0,7,3],[19,0,19,22],[21,22,22,22],[21,4,21,11],[21,2,22,2],[21,23,22,23],[21,12,21,15],[2,3,2,19],[2,20,2,21],[2,22,2,23],[3,20,3,21],[3,22,3,23],[30,1,33,2],[5,20,5,21],[5,22,5,23],[4,3,4,19],[3,3,3,19],[4,20,4,21],[4,22,4,23],[9,0,9,1],[21,3,22,3]]}
["Qbiss Screen H+ Cutting list for U-corner elements",null,null,null,null,null,null,null,null,null,null,null,null,null,null,null,null,null,null,null,null,null,null,null,null,null,null,null,null,null,null,"INSTRUCTIONS"]
[null,null,null,null,null,null,null,null,null,null,null,null,null,null,null,null,null,null,null,null,null,null,null,null,null,null,null,null,null,null,null,"Follow steps"]
[null,"Project name:",null,{"$f":"IF('CUTTING LIST'!C10=\"INSERT TEXT\",\"Insert text on first page\",'CUTTING LIST'!C10)","v":"Insert text on first page"},null,null,null,null,null,null,null,null,null,null,null,null,null,null,null,null,"Date last saved:",null,{"$f":"'CUTTING LIST'!N1","v":"2020-12-15T08:51:28"},null,null,null,null,null,null,null,null,"1 PHASE / FACADE / BUILDING","Mark positioning of the element according to design shop drawings"]
[null,"Customer name:",null,{"$f":"IF('CUTTING LIST'!C11=\"INSERT TEXT\",\"Insert text on first page\",'CUTTING LIST'!C11)","v":"Insert text on first page"},null,null,null,null,null,null,null,null,null,null,null,null,null,null,null,null,"Last saved by:",null,{"$f":"'CUTTING LIST'!N2","v":"Slanšek Matic"},null,null,null,null,null,null,null,null,"2 ELEMENT REF","Mark element according to design shop drawings"]
[null,"Customer order no:",null,{"$f":"IF('CUTTING LIST'!C12=\"INSERT TEXT\",\"Insert text on first page\",'CUTTING LIST'!C12)","v":"Insert text on first page"},null,null,null,null,null,null,null,null,null,null,null,null,null,null,null,null,"Cutting list number:",null,{"$f":"IF('CUTTING LIST'!N3=\"Insert\",\"Insert text on first page\",'CUTTING LIST'!N3)","v":"Insert text on first page"},null,null,null,null,null,null,null,null,"3 QTY","Number of elements"]
[null,null,null,null,null,null,null,null,null,null,null,null,null,null,null,null,null,null,null,null,"Revision:",null,{"$f":"IF('CUTTING LIST'!N4=\"Insert\",\"Insert text on first page\",'CUTTING LIST'!N4)","v":"Insert text on first page"},null,null,null,null,null,null,null,null,"4 Core type","Honeycomb"]
[null,null,null,null,null,null,null,null,null,null,null,null,null,null,null,null,null,null,null,null,null,null,null,null,null,null,null,null,null,null,null,"5 Unit dimensions"]
["STEP 1:",null,null,null,null,null,null,null,null,null,null,null,null,null,null,null,null,null,null,null,null,null,null,null,null,null,null,null,null,null,null,"T-","element thickness [mm]: 50"]
["Type of corner element:",null,null,null,null,null,null,null,null,null,null,null,null,null,null,null,null,null,null,null,null,null,null,null,null,null,null,null,null,null,null,"M-","element module width [mm]: from 600 up to 1200"]
["U_corner_element",null,null,null,null,null,null,null,null,null,null,null,null,null,null,null,null,null,null,null,null,null,null,null,null,null,null,null,null,null,null,"R-","element length [mm]:  from 800 up to 3000"]
[]
[]
[null,null,null,null,null,null,null,null,null,null,null,null,null,null,null,null,null,null,null,null,null,null,null,null,null,null,null,null,null,null,null,null,"Element lenght is measured and scheduled between fixing (joint centres) - SEE PICTURES BELOW !!!"]
[null,null,null,null,null,null,null,null,null,null,null,null,null,null,null,null,null,null,null,null,null,null,null,null,null,null,null,null,null,null,null,"A, B, C-","side of corner element"]
[null,null,null,null,null,null,null,null,null,null,null,null,null,null,null,null,null,null,null,null,null,null,null,null,null,null,null,null,null,null,null,"αAB and αBC-","angle: from 90 degrees to 175 degrees"]
[null,null,null,null,null,null,null,null,null,null,null,null,null,null,null,null,null,null,null,null,null,null,null,null,null,null,null,null,null,null,null,"Limitations:","Amin and Cmin > 200 mm"]
[null,null,null,null,null,null,null,null,null,null,null,null,null,null,null,null,null,null,null,null,null,null,null,null,null,null,null,null,null,null,null,null,"Amax and Cmax < 1000 mm"]
[null,null,null,null,null,null,null,null,null,null,null,null,null,null,null,null,null,null,null,null,null,null,null,null,null,null,null,null,null,null,null,null,"Bmin > 400 mm"]
[null,null,null,null,null,null,null,null,null,null,null,null,null,null,null,null,null,null,null,null,null,null,null,null,null,null,null,null,null,null,null,null,"Bmax < 1000 mm"]
["STEP 2:"]
[1,2,3,4,5,null,null,null,null,null,null,null,6,7,8,9,10,11,12,13,14,15,16,17]
["PHASE / FACADE /","ELEMENT REF:","QTY:","Core type","UNIT DIMENSIONS [mm]",null,null,null,null,null,null,null,"EXTERNAL SKIN",null,null,null,"INTERNAL SKIN",null,null,null,"ELEMENT Type","FIXING POINT","Other notes","TOTAL [m2]","STATUS"]
["BUILDING",null,null,null,"T","M","R","A","B","C","αAB","αBC","Thickness [mm]","Colour","Profile","Coating","Thickness [mm]","Colour","Profile","Coating",null,"QTY",null,null,null,null,null,null,null,"M*QTY","Total fixing points"]
[null,null,null,"Honeycomb",50,null,{"$f":"H24+I24+J24","v":0},null,null,null,null,null,{"$f":"Thickness_of_external_steel_sheet","v":0.7},null,"G",{"$f":"IFERROR(VLOOKUP(N24,'Data 2'!$A$1:$B$28,2,FALSE),\"\")","v":""},0.7,null,"G",null,13,null,null,{"$f":"C24*F24/1000*G24/1000","v":0},{"$f":"IF(OR($A$10=\"\",C24=\"\",D24=\"\",E24=\"\",F24=\"\",H24=\"\",I24=\"\",J24=\"\",K24=\"\",L24=\"\",N24=\"\",Q24=\"\",R24=\"\",S24=\"\",T24=\"\",U24=\"\",V24=\"\"),\"Not OK\",\"OK\")","v":"Not OK"},null,null,null,null,{"$f":"F24*C24","v":0},{"$f":"V24*C24","v":0}]
[]
[null,"TOTAL QTY",{"$f":"SUM(C24:C25)","v":0},null,null,null,null,null,null,null,null,null,null,null,null,null,null,null,null,null,null,null,"TOTAL m2 of facade elements",{"$f":"SUM(X24:X25)","v":0}]
[null,"Module x QTY [m]:",{"$f":"SUM(AD24:AD25)/1000","v":0},null,null,null,null,null,null,null,null,null,null,null,null,null,null,null,null,null,null,null,"TOTAL fixing points",{"$f":"SUM(AE24:AE25)","v":0}]
[]
[]
[null,"Required fields"]
[null,"Input data doesn't meet Qbiss One limitations - see INSTRUCTIONS on the right"]
[]
[]
[]
[null,"Automatically filled"]
[]
[]
[]
[]
[]
[null,null,null,null,null,null,null,null,null,null,null,null,null,null,null,null,null,null,null,null,null,null,null,null,null,null,null,null,null,null,null,"6 External skin thickness","In case of Qbiss Screen H+ elements, to achieve perfect flatness, we always use 0,7 mm thick steel sheet"]
[null,null,null,null,null,null,null,null,null,null,null,null,null,null,null,null,null,null,null,null,null,null,null,null,null,null,null,null,null,null,null,"7 External skin colour","Select avaliable standard colours. Find more about standard colours from Qbiss Screen Book"]
[null,null,null,null,null,null,null,null,null,null,null,null,null,null,null,null,null,null,null,null,null,null,null,null,null,null,null,null,null,null,null,"8 External skin profile","All Qbiss Screen H+ elements have smooth Front-side steel sheet profile"]
[null,null,null,null,null,null,null,null,null,null,null,null,null,null,null,null,null,null,null,null,null,null,null,null,null,null,null,null,null,null,null,"9 External skin coating","Based on colour selection, steel sheet coating is selected automatically"]
[null,null,null,null,null,null,null,null,null,null,null,null,null,null,null,null,null,null,null,null,null,null,null,null,null,null,null,null,null,null,null,"10 Internal skin thickness","We always use 0,7 mm ot 0,675 mm thick steel sheet"]
[null,null,null,null,null,null,null,null,null,null,null,null,null,null,null,null,null,null,null,null,null,null,null,null,null,null,null,null,null,null,null,"11 Internal skin colour","Select avaliable standard colours. Find more about standard colours from Qbiss Screen Book"]
[null,null,null,null,null,null,null,null,null,null,null,null,null,null,null,null,null,null,null,null,null,null,null,null,null,null,null,null,null,null,null,"12 Internal skin profile","All Qbiss Screen H+ elements have smooth Back-side steel sheet profile"]
[null,null,null,null,null,null,null,null,null,null,null,null,null,null,null,null,null,null,null,null,null,null,null,null,null,null,null,null,null,null,null,"13 Internal skin coating","Considering project requirements, you can select what type of coating is appropriate. ",null,null,null,null,null,null,null,null,null,"SP - Polyester"]
[null,null,null,null,null,null,null,null,null,null,null,null,null,null,null,null,null,null,null,null,null,null,null,null,null,null,null,null,null,null,null,null,null,null,null,null,null,null,null,null,null,null,"PVDF - Polyvinylidene fluoride"]
[null,null,null,null,null,null,null,null,null,null,null,null,null,null,null,null,null,null,null,null,null,null,null,null,null,null,null,null,null,null,null,null,null,null,null,null,null,null,null,null,null,null,"PUR/PA - Polyurethane"]
[null,null,null,null,null,null,null,null,null,null,null,null,null,null,null,null,null,null,null,null,null,null,null,null,null,null,null,null,null,null,null,null,null,null,null,null,null,null,null,null,null,null,"PVC - Polyvinyl chloride"]
[null,null,null,null,null,null,null,null,null,null,null,null,null,null,null,null,null,null,null,null,null,null,null,null,null,null,null,null,null,null,null,"14 Element type","Qbiss Screen H+ uses element type 13."]
[]
[]
[]
[]
[]
[]
[]
[null,null,null,null,null,null,null,null,null,null,null,null,null,null,null,null,null,null,null,null,null,null,null,null,null,null,null,null,null,null,null,"15 Fixing point","Select quantity of fixing points on Qbiss element according to structural calculation, made by Trimo technical support"]
[null,null,null,null,null,null,null,null,null,null,null,null,null,null,null,null,null,null,null,null,null,null,null,null,null,null,null,null,null,null,null,null,"Limitations: 2 < number of fixing points < 6",null,null,null,"(only on one side of the element)"]
[]
[]
[]
[]
[]
[]
[]
[]
[]
[]
[]
[]
[]
[]
[]
[]
[null,null,null,null,null,null,null,null,null,null,null,null,null,null,null,null,null,null,null,null,null,null,null,null,null,null,null,null,null,null,null,"Printscreen of structural calculation in SandStat"]
[null,null,null,null,null,null,null,null,null,null,null,null,null,null,null,null,null,null,null,null,null,null,null,null,null,null,null,null,null,null,null,"16  Other notes"]
[null,null,null,null,null,null,null,null,null,null,null,null,null,null,null,null,null,null,null,null,null,null,null,null,null,null,null,null,null,null,null,"17 Total","Total amount of facade elements - calculated automatically"]
[null,null,null,null,null,null,null,null,null,null,null,null,null,null,null,null,null,null,null,null,null,null,null,null,null,null,null,null,null,null,null,"STATUS","OK","\"- element completely defined"]
[null,null,null,null,null,null,null,null,null,null,null,null,null,null,null,null,null,null,null,null,null,null,null,null,null,null,null,null,null,null,null,null,"Not OK","\"- Some caracteristics of the element are missing, please fulfill all required cells."]

{"sheet":"Accessories","index":5,"n_rows":34,"n_cols":25,"rows_kept":34,"cut":false,"hidden":false,"merged":[[7,0,7,2],[24,0,24,1],[25,0,25,1],[26,0,26,1],[9,3,11,3],[9,2,11,2],[9,0,11,1],[9,9,9,14],[9,7,11,8],[9,5,11,6],[9,4,11,4],[47,0,47,1],[41,0,41,1],[42,0,42,1],[43,0,43,1],[44,0,44,1],[45,0,45,1],[46,0,46,1],[12,4,17,4],[12,5,17,5],[18,0,23,1],[18,2,23,2],[18,3,23,3],[18,4,23,4],[18,5,23,5],[12,0,17,1],[12,2,17,2],[12,3,17,3],[0,0,0,18],[5,15,5,16],[5,17,5,18],[5,10,5,12],[2,15,2,16],[2,17,2,18],[3,15,3,16],[3,17,3,18],[4,15,4,16],[4,17,4,18],[12,7,17,7],[12,8,17,8],[29,20,29,24],[18,6,23,6],[18,7,23,7],[18,8,23,8],[18,9,19,14],[22,9,22,10],[23,9,23,10],[20,13,21,13],[28,24,28,26],[27,20,27,22],[27,24,27,26],[28,20,28,22],[20,9,21,10],[12,6,17,6],[27,3,28,3],[27,8,28,8],[27,7,28,7],[27,6,28,6],[27,5,28,5],[27,4,28,4],[40,0,40,1],[34,0,34,1],[35,0,35,1],[27,0,28,1],[27,2,28,2],[36,0,36,1],[38,0,38,1],[29,0,29,1],[20,12,21,12],[20,11,21,11],[20,14,21,14],[30,0,30,1],[42,20,42,24],[39,20,39,24],[33,20,33,22],[33,24,33,26],[39,0,39,1],[31,0,31,1],[32,0,32,1],[37,0,37,1],[30,13,30,16],[32,13,32,16],[31,17,32,17],[31,18,32,18],[2,20,2,28],[3,20,3,28],[5,20,5,27],[6,20,6,26],[7,20,7,26]]}
["Qbiss Screen H+ Accessories",null,null,null,null,null,null,null,null,null,null,null,null,null,null,null,null,null,null,null,"INSTRUCTIONS"]
[]
[null,"Project name:",null,{"$f":"IF('CUTTING LIST'!C10=\"INSERT TEXT\",\"Insert text on first page\",'CUTTING LIST'!C10)","v":"Insert text on first page"},null,null,null,null,null,null,null,null,null,null,null,"Date last saved:",null,{"$f":"ProfessorExcelLastSaveDate()","v":"2020-12-15T08:51:28"},null,null,"Fulfill ORDER QUANTITY"]
[null,"Customer name:",null,{"$f":"IF('CUTTING LIST'!C11=\"INSERT TEXT\",\"Insert text on first page\",'CUTTING LIST'!C11)","v":"Insert text on first page"},null,null,null,null,null,null,null,null,null,null,null,"Laste saved by:",null,{"$f":"ProfessorExcelLastSavedBy()","v":"Slanšek Matic"},null,null,"1 Material of substructure: Select the material"]
[null,"Customer order no:",null,{"$f":"IF('CUTTING LIST'!C12=\"INSERT TEXT\",\"Insert text on first page\",'CUTTING LIST'!C18)","v":"Insert text on first page"},null,null,null,null,null,null,null,null,null,null,null,"Cutting list number:",null,{"$f":"IF('CUTTING LIST'!N3=\"Insert\",\"Insert text on first page\",'CUTTING LIST'!N3)","v":"Insert text on first page"},null,null,"2 Minimal thickness of substructure: Select the minimum thickness. Accordingly, fixation screw will be determined"]
[null,null,{"$f":"'Qbiss Screen H+ elements'!M10","v":{"$error":"#N/A"}},null,null,null,null,null,null,null,null,null,null,null,null,"Revision:",null,{"$f":"IF('CUTTING LIST'!N4=\"Insert\",\"Insert text on first page\",'CUTTING LIST'!N4)","v":"Insert text on first page"},null,null,"3 Name of fixing screw will be automatically determined based on previous selection"]
[null,null,null,null,null,null,null,null,null,null,null,null,null,null,null,null,null,null,null,null,"4 Insert required number of fixing screw"]
["LIST OF Accessories",null,null,null,null,null,null,null,null,null,"Required fields",null,null,null,null,null,null,null,null,null,"5 Code of fixing screw will be automatically determined"]
[null,null,null,null,null,null,null,null,null,null,"Automatically filled"]
["NAME",null,"PICTURE","DESCRIPTION","Note","ESTIMATED NET quantity*",null,"ORDER quantity",null,"S p e c i f y   f i x a t i o n    s c r e w"]
[null,null,null,null,null,null,null,null,null,"1.","2.",null,"3.","4.","5.",null,null,null,null,null,"LAP joint - horizontal installation",null,null,null,"LAP joint - vertical installation"]
[null,null,null,null,null,null,null,null,null,"Material of substructure","Minimal thickness of substructure (mm)","Material and thickness","Name of fixing screw","Quantity (pcs)","Code of fixing screw"]
[{"$f":"IF(ISNUMBER(SEARCH(\"horizontal\",'Qbiss Screen H+ elements'!$M$10)),'Data 3 Accessories'!A8,IF(ISNUMBER(SEARCH(\"vertical\",'Qbiss Screen H+ elements'!$M$10)),'Data 3 Accessories'!A32,IF(ISNUMBER(SEARCH(\"Soffit\",'Qbiss Screen H+ elements'!$M$10)),'Data 3 Accessories'!A53,\"\")))","v":""},null,null,{"$f":"_xlfn.IFS(ISNUMBER(SEARCH(\"horizontal\",$C$6)),INDEX('Data 3 Accessories'!$D$8:$AM$19,MATCH(Accessories!$A13,'Data 3 Accessories'!$A$8:$A$19,0),MATCH(Accessories!$C$6,'Data 3 Accessories'!$D$1:$AM$1,0)),ISNUMBER(SEARCH(\"vertical\",$C$6)),INDEX('Data 3 Accessories'!$D$32:$S$44,MATCH(Accessories!$A13,'Data 3 Accessories'!$A$32:$A$44,0),MATCH(Accessories!$C$6,'Data 3 Accessories'!$D$23:$S$23,0)),ISNUMBER(SEARCH(\"Soffit\",$C$6)),INDEX('Data 3 Accessories'!$D$46:$AM$64,MATCH(Accessories!$A13,'Data 3 Accessories'!$A$46:$A$64,0),MATCH(Accessories!$C$6,'Data 3 Accessories'!$D$46:$AM$46,0)))","v":{"$error":"#N/A"}},{"$f":"_xlfn.IFS(ISNUMBER(SEARCH(\"horizontal\",$C$6)),INDEX('Data 3 Accessories'!$D$8:$AM$19,MATCH(Accessories!$A13,'Data 3 Accessories'!$A$8:$A$19,0),MATCH(Accessories!$C$6,'Data 3 Accessories'!$D$1:$AM$1,0)+1),ISNUMBER(SEARCH(\"vertical\",$C$6)),INDEX('Data 3 Accessories'!$D$32:$S$44,MATCH(Accessories!$A13,'Data 3 Accessories'!$A$32:$A$44,0),MATCH(Accessories!$C$6,'Data 3 Accessories'!$D$23:$S$23,0)+1),ISNUMBER(SEARCH(\"Soffit\",$C$6)),INDEX('Data 3 Accessories'!$D$46:$AM$64,MATCH(Accessories!$A13,'Data 3 Accessories'!$A$46:$A$64,0),MATCH(Accessories!$C$6,'Data 3 Accessories'!$D$46:$AM$46,0)+1))","v":{"$error":"#N/A"}},{"$f":"SUM('Qbiss Screen H+ elements'!S27,'Longitudinal L-corner elements '!W27,'Transversal L-corner elements'!W27,'U-corner elements'!X27)","v":0},{"$f":"VLOOKUP(A13,'Data 3 Accessories'!$A$8:$C$44,2,FALSE)","v":{"$error":"#N/A"}},null,{"$f":"G19","v":{"$error":"#N/A"}},null,null,{"$f":"J13&K13","v":""},null,null,{"$f":"INDEX('Fixing material data'!$F$4:$F$11,MATCH(1,INDEX((Accessories!J13=Material_of_substructure)*(Accessories!K13=Minimal_thickness_of_substructure__mm),0.1),0))","v":{"$error":"#N/A"}}]
[null,null,null,null,null,null,null,null,null,null,null,{"$f":"J14&K14","v":""},null,null,{"$f":"INDEX('Fixing material data'!$F$4:$F$11,MATCH(1,INDEX((Accessories!J14=Material_of_substructure)*(Accessories!K14=Minimal_thickness_of_substructure__mm),0.1),0))","v":{"$error":"#N/A"}}]
[null,null,null,null,null,null,null,null,null,null,null,"",null,null,{"$f":"INDEX('Fixing material data'!$F$4:$F$11,MATCH(1,INDEX((Accessories!J15=Material_of_substructure)*(Accessories!K15=Minimal_thickness_of_substructure__mm),0.1),0))","v":{"$error":"#N/A"}}]
[null,null,null,null,null,null,null,null,null,null,null,"",null,null,{"$f":"INDEX('Fixing material data'!$F$4:$F$11,MATCH(1,INDEX((Accessories!J16=Material_of_substructure)*(Accessories!K16=Minimal_thickness_of_substructure__mm),0.1),0))","v":{"$error":"#N/A"}}]
[null,null,null,null,null,null,null,null,null,null,null,"",null,null,{"$f":"INDEX('Fixing material data'!$F$4:$F$11,MATCH(1,INDEX((Accessories!J17=Material_of_substructure)*(Accessories!K17=Minimal_thickness_of_substructure__mm),0.1),0))","v":{"$error":"#N/A"}}]
[null,null,null,null,null,null,null,null,null,null,null,"",null,null,{"$f":"INDEX('Fixing material data'!$F$4:$F$11,MATCH(1,INDEX((Accessories!J18=Material_of_substructure)*(Accessories!K18=Minimal_thickness_of_substructure__mm),0.1),0))","v":{"$error":"#N/A"}}]
[{"$f":"IF(ISNUMBER(SEARCH(\"horizontal\",'Qbiss Screen H+ elements'!$M$10)),'Data 3 Accessories'!A9,IF(ISNUMBER(SEARCH(\"vertical\",'Qbiss Screen H+ elements'!$M$10)),'Data 3 Accessories'!A33,IF(ISNUMBER(SEARCH(\"Soffit\",'Qbiss Screen H+ elements'!$M$10)),'Data 3 Accessories'!A54,\"\")))","v":""},null,null,{"$f":"_xlfn.IFS(ISNUMBER(SEARCH(\"horizontal\",$C$6)),INDEX('Data 3 Accessories'!$D$8:$AM$19,MATCH(Accessories!$A19,'Data 3 Accessories'!$A$8:$A$19,0),MATCH(Accessories!$C$6,'Data 3 Accessories'!$D$1:$AM$1,0)),ISNUMBER(SEARCH(\"vertical\",$C$6)),INDEX('Data 3 Accessories'!$D$32:$S$44,MATCH(Accessories!$A19,'Data 3 Accessories'!$A$32:$A$44,0),MATCH(Accessories!$C$6,'Data 3 Accessories'!$D$23:$S$23,0)),ISNUMBER(SEARCH(\"Soffit\",$C$6)),INDEX('Data 3 Accessories'!$D$46:$AM$64,MATCH(Accessories!$A19,'Data 3 Accessories'!$A$46:$A$64,0),MATCH(Accessories!$C$6,'Data 3 Accessories'!$D$46:$AM$46,0)))","v":{"$error":"#N/A"}},{"$f":"_xlfn.IFS(ISNUMBER(SEARCH(\"horizontal\",$C$6)),INDEX('Data 3 Accessories'!$D$8:$AM$19,MATCH(Accessories!$A19,'Data 3 Accessories'!$A$8:$A$19,0),MATCH(Accessories!$C$6,'Data 3 Accessories'!$D$1:$AM$1,0)+1),ISNUMBER(SEARCH(\"vertical\",$C$6)),INDEX('Data 3 Accessories'!$D$32:$S$44,MATCH(Accessories!$A19,'Data 3 Accessories'!$A$32:$A$44,0),MATCH(Accessories!$C$6,'Data 3 Accessories'!$D$23:$S$23,0)+1),ISNUMBER(SEARCH(\"Soffit\",$C$6)),INDEX('Data 3 Accessories'!$D$46:$AM$64,MATCH(Accessories!$A19,'Data 3 Accessories'!$A$46:$A$64,0),MATCH(Accessories!$C$6,'Data 3 Accessories'!$D$46:$AM$46,0)+1))","v":{"$error":"#N/A"}},{"$f":"IF(ISNUMBER(SEARCH(\"horizontal\",C6)),4*('Qbiss Screen H+ elements'!C26+'Longitudinal L-corner elements '!C26+'Transversal L-corner elements'!C26+'U-corner elements'!C26),8*('Qbiss Screen H+ elements'!C26+'Longitudinal L-corner elements '!C26+'Transversal L-corner elements'!C26+'U-corner elements'!C26))","v":0},{"$f":"VLOOKUP(A19,'Data 3 Accessories'!$A$8:$C$44,2,FALSE)","v":{"$error":"#N/A"}},null,{"$f":"G19","v":{"$error":"#N/A"}},"S p e c i f y   f i x i n g   m a t e r i a l   f o r   L A P   j o i n t "]
[]
[null,null,null,null,null,null,null,null,null,"Material of substructure",null,"Material+1","Name of fixing screw","Quantity (pcs)","Code of fixing screw"]
[]
[null,null,null,null,null,null,null,null,null,null,null,{"$f":"J23&\"1\"","v":"1"},null,null,{"$f":"VLOOKUP(M23,'Fixing material data'!$B$20:$E$22,4,FALSE)","v":{"$error":"#N/A"}}]
[null,null,null,null,null,null,null,null,null,null,null,{"$f":"J24&\"1\"","v":"1"},null,null,{"$f":"VLOOKUP(M24,'Fixing material data'!$B$20:$E$22,4,FALSE)","v":{"$error":"#N/A"}}]
[{"$f":"IF(ISNUMBER(SEARCH(\"horizontal\",'Qbiss Screen H+ elements'!$M$10)),'Data 3 Accessories'!A10,IF(ISNUMBER(SEARCH(\"vertical\",'Qbiss Screen H+ elements'!$M$10)),'Data 3 Accessories'!A34,IF(ISNUMBER(SEARCH(\"Soffit\",'Qbiss Screen H+ elements'!$M$10)),'Data 3 Accessories'!A55,\"\")))","v":""},null,null,{"$f":"_xlfn.IFS(ISNUMBER(SEARCH(\"horizontal\",$C$6)),INDEX('Data 3 Accessories'!$D$8:$AM$19,MATCH(Accessories!$A25,'Data 3 Accessories'!$A$8:$A$19,0),MATCH(Accessories!$C$6,'Data 3 Accessories'!$D$1:$AM$1,0)),ISNUMBER(SEARCH(\"vertical\",$C$6)),INDEX('Data 3 Accessories'!$D$32:$S$44,MATCH(Accessories!$A25,'Data 3 Accessories'!$A$32:$A$44,0),MATCH(Accessories!$C$6,'Data 3 Accessories'!$D$23:$S$23,0)),ISNUMBER(SEARCH(\"Soffit\",$C$6)),INDEX('Data 3 Accessories'!$D$46:$AM$64,MATCH(Accessories!$A25,'Data 3 Accessories'!$A$46:$A$64,0),MATCH(Accessories!$C$6,'Data 3 Accessories'!$D$46:$AM$46,0)))","v":{"$error":"#N/A"}},{"$f":"_xlfn.IFS(ISNUMBER(SEARCH(\"horizontal\",$C$6)),INDEX('Data 3 Accessories'!$D$8:$AM$19,MATCH(Accessories!$A25,'Data 3 Accessories'!$A$8:$A$19,0),MATCH(Accessories!$C$6,'Data 3 Accessories'!$D$1:$AM$1,0)+1),ISNUMBER(SEARCH(\"vertical\",$C$6)),INDEX('Data 3 Accessories'!$D$32:$S$44,MATCH(Accessories!$A25,'Data 3 Accessories'!$A$32:$A$44,0),MATCH(Accessories!$C$6,'Data 3 Accessories'!$D$23:$S$23,0)+1),ISNUMBER(SEARCH(\"Soffit\",$C$6)),INDEX('Data 3 Accessories'!$D$46:$AM$64,MATCH(Accessories!$A25,'Data 3 Accessories'!$A$46:$A$64,0),MATCH(Accessories!$C$6,'Data 3 Accessories'!$D$46:$AM$46,0)+1))","v":{"$error":"#N/A"}},{"$f":"SUM('Qbiss Screen H+ elements'!C27,'Longitudinal L-corner elements '!C27,'Transversal L-corner elements'!C27,'U-corner elements'!C27)","v":0},{"$f":"VLOOKUP(A25,'Data 3 Accessories'!$A$8:$C$44,2,FALSE)","v":{"$error":"#N/A"}},null,{"$error":"#N/A"}]
[{"$f":"IF(ISNUMBER(SEARCH(\"horizontal\",'Qbiss Screen H+ elements'!$M$10)),'Data 3 Accessories'!A11,IF(ISNUMBER(SEARCH(\"vertical\",'Qbiss Screen H+ elements'!$M$10)),'Data 3 Accessories'!A35,IF(ISNUMBER(SEARCH(\"Soffit\",'Qbiss Screen H+ elements'!$M$10)),'Data 3 Accessories'!A56,\"\")))","v":""},null,null,{"$f":"_xlfn.IFS(ISNUMBER(SEARCH(\"horizontal\",$C$6)),INDEX('Data 3 Accessories'!$D$8:$AM$19,MATCH(Accessories!$A26,'Data 3 Accessories'!$A$8:$A$19,0),MATCH(Accessories!$C$6,'Data 3 Accessories'!$D$1:$AM$1,0)),ISNUMBER(SEARCH(\"vertical\",$C$6)),INDEX('Data 3 Accessories'!$D$32:$S$44,MATCH(Accessories!$A26,'Data 3 Accessories'!$A$32:$A$44,0),MATCH(Accessories!$C$6,'Data 3 Accessories'!$D$23:$S$23,0)),ISNUMBER(SEARCH(\"Soffit\",$C$6)),INDEX('Data 3 Accessories'!$D$46:$AM$64,MATCH(Accessories!$A26,'Data 3 Accessories'!$A$46:$A$64,0),MATCH(Accessories!$C$6,'Data 3 Accessories'!$D$46:$AM$46,0)))","v":{"$error":"#N/A"}},{"$f":"_xlfn.IFS(ISNUMBER(SEARCH(\"horizontal\",$C$6)),INDEX('Data 3 Accessories'!$D$8:$AM$19,MATCH(Accessories!$A26,'Data 3 Accessories'!$A$8:$A$19,0),MATCH(Accessories!$C$6,'Data 3 Accessories'!$D$1:$AM$1,0)+1),ISNUMBER(SEARCH(\"vertical\",$C$6)),INDEX('Data 3 Accessories'!$D$32:$S$44,MATCH(Accessories!$A26,'Data 3 Accessories'!$A$32:$A$44,0),MATCH(Accessories!$C$6,'Data 3 Accessories'!$D$23:$S$23,0)+1),ISNUMBER(SEARCH(\"Soffit\",$C$6)),INDEX('Data 3 Accessories'!$D$46:$AM$64,MATCH(Accessories!$A26,'Data 3 Accessories'!$A$46:$A$64,0),MATCH(Accessories!$C$6,'Data 3 Accessories'!$D$46:$AM$46,0)+1))","v":{"$error":"#N/A"}},{"$f":"F25","v":0},{"$f":"VLOOKUP(A26,'Data 3 Accessories'!$A$8:$C$44,2,FALSE)","v":{"$error":"#N/A"}},null,{"$error":"#N/A"}]
[{"$f":"IF(ISNUMBER(SEARCH(\"horizontal\",'Qbiss Screen H+ elements'!$M$10)),'Data 3 Accessories'!A12,IF(ISNUMBER(SEARCH(\"vertical\",'Qbiss Screen H+ elements'!$M$10)),'Data 3 Accessories'!A36,IF(ISNUMBER(SEARCH(\"Soffit\",'Qbiss Screen H+ elements'!$M$10)),'Data 3 Accessories'!A57,\"\")))","v":""},null,null,{"$f":"_xlfn.IFS(ISNUMBER(SEARCH(\"horizontal\",$C$6)),INDEX('Data 3 Accessories'!$D$8:$AM$19,MATCH(Accessories!$A27,'Data 3 Accessories'!$A$8:$A$19,0),MATCH(Accessories!$C$6,'Data 3 Accessories'!$D$1:$AM$1,0)),ISNUMBER(SEARCH(\"vertical\",$C$6)),INDEX('Data 3 Accessories'!$D$32:$S$44,MATCH(Accessories!$A27,'Data 3 Accessories'!$A$32:$A$44,0),MATCH(Accessories!$C$6,'Data 3 Accessories'!$D$23:$S$23,0)),ISNUMBER(SEARCH(\"Soffit\",$C$6)),INDEX('Data 3 Accessories'!$D$46:$AM$64,MATCH(Accessories!$A27,'Data 3 Accessories'!$A$46:$A$64,0),MATCH(Accessories!$C$6,'Data 3 Accessories'!$D$46:$AM$46,0)))","v":{"$error":"#N/A"}},{"$f":"_xlfn.IFS(ISNUMBER(SEARCH(\"horizontal\",$C$6)),INDEX('Data 3 Accessories'!$D$8:$AM$19,MATCH(Accessories!$A27,'Data 3 Accessories'!$A$8:$A$19,0),MATCH(Accessories!$C$6,'Data 3 Accessories'!$D$1:$AM$1,0)+1),ISNUMBER(SEARCH(\"vertical\",$C$6)),INDEX('Data 3 Accessories'!$D$32:$S$44,MATCH(Accessories!$A27,'Data 3 Accessories'!$A$32:$A$44,0),MATCH(Accessories!$C$6,'Data 3 Accessories'!$D$23:$S$23,0)+1),ISNUMBER(SEARCH(\"Soffit\",$C$6)),INDEX('Data 3 Accessories'!$D$46:$AM$64,MATCH(Accessories!$A27,'Data 3 Accessories'!$A$46:$A$64,0),MATCH(Accessories!$C$6,'Data 3 Accessories'!$D$46:$AM$46,0)+1))","v":{"$error":"#N/A"}},{"$f":"ROUNDUP(SUM('Qbiss Screen H+ elements'!S26,'Longitudinal L-corner elements '!W26,'Transversal L-corner elements'!W26,'U-corner elements'!X26)/500,0)","v":0},{"$f":"VLOOKUP(A27,'Data 3 Accessories'!$A$8:$C$44,2,FALSE)","v":{"$error":"#N/A"}},null,{"$error":"#N/A"}]
[{"$f":"IF(ISNUMBER(SEARCH(\"horizontal\",'Qbiss Screen H+ elements'!$M$10)),'Data 3 Accessories'!A13,IF(ISNUMBER(SEARCH(\"vertical\",'Qbiss Screen H+ elements'!$M$10)),'Data 3 Accessories'!A37,IF(ISNUMBER(SEARCH(\"Soffit\",'Qbiss Screen H+ elements'!$M$10)),'Data 3 Accessories'!A58,\"\")))","v":""},null,null,{"$f":"_xlfn.IFS(ISNUMBER(SEARCH(\"horizontal\",$C$6)),INDEX('Data 3 Accessories'!$D$8:$AM$19,MATCH(Accessories!$A28,'Data 3 Accessories'!$A$8:$A$19,0),MATCH(Accessories!$C$6,'Data 3 Accessories'!$D$1:$AM$1,0)),ISNUMBER(SEARCH(\"vertical\",$C$6)),INDEX('Data 3 Accessories'!$D$32:$S$44,MATCH(Accessories!$A28,'Data 3 Accessories'!$A$32:$A$44,0),MATCH(Accessories!$C$6,'Data 3 Accessories'!$D$23:$S$23,0)),ISNUMBER(SEARCH(\"Soffit\",$C$6)),INDEX('Data 3 Accessories'!$D$46:$AM$64,MATCH(Accessories!$A28,'Data 3 Accessories'!$A$46:$A$64,0),MATCH(Accessories!$C$6,'Data 3 Accessories'!$D$46:$AM$46,0)))","v":{"$error":"#N/A"}},{"$f":"_xlfn.IFS(ISNUMBER(SEARCH(\"horizontal\",$C$6)),INDEX('Data 3 Accessories'!$D$8:$AM$19,MATCH(Accessories!$A28,'Data 3 Accessories'!$A$8:$A$19,0),MATCH(Accessories!$C$6,'Data 3 Accessories'!$D$1:$AM$1,0)+1),ISNUMBER(SEARCH(\"vertical\",$C$6)),INDEX('Data 3 Accessories'!$D$32:$S$44,MATCH(Accessories!$A28,'Data 3 Accessories'!$A$32:$A$44,0),MATCH(Accessories!$C$6,'Data 3 Accessories'!$D$23:$S$23,0)+1),ISNUMBER(SEARCH(\"Soffit\",$C$6)),INDEX('Data 3 Accessories'!$D$46:$AM$64,MATCH(Accessories!$A28,'Data 3 Accessories'!$A$46:$A$64,0),MATCH(Accessories!$C$6,'Data 3 Accessories'!$D$46:$AM$46,0)+1))","v":{"$error":"#N/A"}},"Not defined",{"$f":"VLOOKUP(A28,'Data 3 Accessories'!$A$8:$C$44,2,FALSE)","v":{"$error":"#N/A"}},null,{"$f":"G28","v":{"$error":"#N/A"}}]
[]
[{"$f":"IF(ISNUMBER(SEARCH(\"horizontal\",'Qbiss Screen H+ elements'!$M$10)),'Data 3 Accessories'!A14,IF(ISNUMBER(SEARCH(\"vertical\",'Qbiss Screen H+ elements'!$M$10)),'Data 3 Accessories'!A38,IF(ISNUMBER(SEARCH(\"Soffit\",'Qbiss Screen H+ elements'!$M$10)),'Data 3 Accessories'!A59,\"\")))","v":""},null,null,{"$f":"_xlfn.IFS(ISNUMBER(SEARCH(\"horizontal\",$C$6)),INDEX('Data 3 Accessories'!$D$8:$AM$19,MATCH(Accessories!$A30,'Data 3 Accessories'!$A$8:$A$19,0),MATCH(Accessories!$C$6,'Data 3 Accessories'!$D$1:$AM$1,0)),ISNUMBER(SEARCH(\"vertical\",$C$6)),INDEX('Data 3 Accessories'!$D$32:$S$44,MATCH(Accessories!$A30,'Data 3 Accessories'!$A$32:$A$44,0),MATCH(Accessories!$C$6,'Data 3 Accessories'!$D$23:$S$23,0)),ISNUMBER(SEARCH(\"Soffit\",$C$6)),INDEX('Data 3 Accessories'!$D$46:$AM$64,MATCH(Accessories!$A30,'Data 3 Accessories'!$A$46:$A$64,0),MATCH(Accessories!$C$6,'Data 3 Accessories'!$D$46:$AM$46,0)))","v":{"$error":"#N/A"}},{"$f":"_xlfn.IFS(ISNUMBER(SEARCH(\"horizontal\",$C$6)),INDEX('Data 3 Accessories'!$D$8:$AM$19,MATCH(Accessories!$A30,'Data 3 Accessories'!$A$8:$A$19,0),MATCH(Accessories!$C$6,'Data 3 Accessories'!$D$1:$AM$1,0)+1),ISNUMBER(SEARCH(\"vertical\",$C$6)),INDEX('Data 3 Accessories'!$D$32:$S$44,MATCH(Accessories!$A30,'Data 3 Accessories'!$A$32:$A$44,0),MATCH(Accessories!$C$6,'Data 3 Accessories'!$D$23:$S$23,0)+1),ISNUMBER(SEARCH(\"Soffit\",$C$6)),INDEX('Data 3 Accessories'!$D$46:$AM$64,MATCH(Accessories!$A30,'Data 3 Accessories'!$A$46:$A$64,0),MATCH(Accessories!$C$6,'Data 3 Accessories'!$D$46:$AM$46,0)+1))","v":{"$error":"#N/A"}},"Not defined",{"$f":"VLOOKUP(A30,'Data 3 Accessories'!$A$8:$C$44,2,FALSE)","v":{"$error":"#N/A"}},null,{"$error":"#N/A"}]
[{"$f":"IF(ISNUMBER(SEARCH(\"horizontal\",'Qbiss Screen H+ elements'!$M$10)),'Data 3 Accessories'!A15,IF(ISNUMBER(SEARCH(\"vertical\",'Qbiss Screen H+ elements'!$M$10)),'Data 3 Accessories'!A39,IF(ISNUMBER(SEARCH(\"Soffit\",'Qbiss Screen H+ elements'!$M$10)),'Data 3 Accessories'!A60,\"\")))","v":""},null,null,{"$f":"_xlfn.IFS(ISNUMBER(SEARCH(\"horizontal\",$C$6)),INDEX('Data 3 Accessories'!$D$8:$AM$19,MATCH(Accessories!$A31,'Data 3 Accessories'!$A$8:$A$19,0),MATCH(Accessories!$C$6,'Data 3 Accessories'!$D$1:$AM$1,0)),ISNUMBER(SEARCH(\"vertical\",$C$6)),INDEX('Data 3 Accessories'!$D$32:$S$44,MATCH(Accessories!$A31,'Data 3 Accessories'!$A$32:$A$44,0),MATCH(Accessories!$C$6,'Data 3 Accessories'!$D$23:$S$23,0)),ISNUMBER(SEARCH(\"Soffit\",$C$6)),INDEX('Data 3 Accessories'!$D$46:$AM$64,MATCH(Accessories!$A31,'Data 3 Accessories'!$A$46:$A$64,0),MATCH(Accessories!$C$6,'Data 3 Accessories'!$D$46:$AM$46,0)))","v":{"$error":"#N/A"}},{"$f":"_xlfn.IFS(ISNUMBER(SEARCH(\"horizontal\",$C$6)),INDEX('Data 3 Accessories'!$D$8:$AM$19,MATCH(Accessories!$A31,'Data 3 Accessories'!$A$8:$A$19,0),MATCH(Accessories!$C$6,'Data 3 Accessories'!$D$1:$AM$1,0)+1),ISNUMBER(SEARCH(\"vertical\",$C$6)),INDEX('Data 3 Accessories'!$D$32:$S$44,MATCH(Accessories!$A31,'Data 3 Accessories'!$A$32:$A$44,0),MATCH(Accessories!$C$6,'Data 3 Accessories'!$D$23:$S$23,0)+1),ISNUMBER(SEARCH(\"Soffit\",$C$6)),INDEX('Data 3 Accessories'!$D$46:$AM$64,MATCH(Accessories!$A31,'Data 3 Accessories'!$A$46:$A$64,0),MATCH(Accessories!$C$6,'Data 3 Accessories'!$D$46:$AM$46,0)+1))","v":{"$error":"#N/A"}},"Not defined",{"$f":"VLOOKUP(A31,'Data 3 Accessories'!$A$8:$C$44,2,FALSE)","v":{"$error":"#N/A"}},null,{"$error":"#N/A"}]
[{"$f":"IF(ISNUMBER(SEARCH(\"horizontal\",'Qbiss Screen H+ elements'!$M$10)),'Data 3 Accessories'!A16,IF(ISNUMBER(SEARCH(\"vertical\",'Qbiss Screen H+ elements'!$M$10)),'Data 3 Accessories'!A40,IF(ISNUMBER(SEARCH(\"Soffit\",'Qbiss Screen H+ elements'!$M$10)),'Data 3 Accessories'!A61,\"\")))","v":""},null,null,{"$f":"_xlfn.IFS(ISNUMBER(SEARCH(\"horizontal\",$C$6)),INDEX('Data 3 Accessories'!$D$8:$AM$19,MATCH(Accessories!$A32,'Data 3 Accessories'!$A$8:$A$19,0),MATCH(Accessories!$C$6,'Data 3 Accessories'!$D$1:$AM$1,0)),ISNUMBER(SEARCH(\"vertical\",$C$6)),INDEX('Data 3 Accessories'!$D$32:$S$44,MATCH(Accessories!$A32,'Data 3 Accessories'!$A$32:$A$44,0),MATCH(Accessories!$C$6,'Data 3 Accessories'!$D$23:$S$23,0)),ISNUMBER(SEARCH(\"Soffit\",$C$6)),INDEX('Data 3 Accessories'!$D$46:$AM$64,MATCH(Accessories!$A32,'Data 3 Accessories'!$A$46:$A$64,0),MATCH(Accessories!$C$6,'Data 3 Accessories'!$D$46:$AM$46,0)))","v":{"$error":"#N/A"}},{"$f":"_xlfn.IFS(ISNUMBER(SEARCH(\"horizontal\",$C$6)),INDEX('Data 3 Accessories'!$D$8:$AM$19,MATCH(Accessories!$A32,'Data 3 Accessories'!$A$8:$A$19,0),MATCH(Accessories!$C$6,'Data 3 Accessories'!$D$1:$AM$1,0)+1),ISNUMBER(SEARCH(\"vertical\",$C$6)),INDEX('Data 3 Accessories'!$D$32:$S$44,MATCH(Accessories!$A32,'Data 3 Accessories'!$A$32:$A$44,0),MATCH(Accessories!$C$6,'Data 3 Accessories'!$D$23:$S$23,0)+1),ISNUMBER(SEARCH(\"Soffit\",$C$6)),INDEX('Data 3 Accessories'!$D$46:$AM$64,MATCH(Accessories!$A32,'Data 3 Accessories'!$A$46:$A$64,0),MATCH(Accessories!$C$6,'Data 3 Accessories'!$D$46:$AM$46,0)+1))","v":{"$error":"#N/A"}},"Not defined",{"$f":"VLOOKUP(A32,'Data 3 Accessories'!$A$8:$C$44,2,FALSE)","v":{"$error":"#N/A"}},null,{"$error":"#N/A"}]
[{"$f":"IF(ISNUMBER(SEARCH(\"horizontal\",'Qbiss Screen H+ elements'!$M$10)),'Data 3 Accessories'!A17,IF(ISNUMBER(SEARCH(\"vertical\",'Qbiss Screen H+ elements'!$M$10)),'Data 3 Accessories'!A41,IF(ISNUMBER(SEARCH(\"Soffit\",'Qbiss Screen H+ elements'!$M$10)),'Data 3 Accessories'!#REF!,\"\")))","v":""},null,null,{"$f":"_xlfn.IFS(ISNUMBER(SEARCH(\"horizontal\",$C$6)),INDEX('Data 3 Accessories'!$D$8:$AM$19,MATCH(Accessories!$A33,'Data 3 Accessories'!$A$8:$A$19,0),MATCH(Accessories!$C$6,'Data 3 Accessories'!$D$1:$AM$1,0)),ISNUMBER(SEARCH(\"vertical\",$C$6)),INDEX('Data 3 Accessories'!$D$32:$S$44,MATCH(Accessories!$A33,'Data 3 Accessories'!$A$32:$A$44,0),MATCH(Accessories!$C$6,'Data 3 Accessories'!$D$23:$S$23,0)),ISNUMBER(SEARCH(\"Soffit\",$C$6)),INDEX('Data 3 Accessories'!$D$46:$AM$64,MATCH(Accessories!$A33,'Data 3 Accessories'!$A$46:$A$64,0),MATCH(Accessories!$C$6,'Data 3 Accessories'!$D$46:$AM$46,0)))","v":{"$error":"#N/A"}},{"$f":"_xlfn.IFS(ISNUMBER(SEARCH(\"horizontal\",$C$6)),INDEX('Data 3 Accessories'!$D$8:$AM$19,MATCH(Accessories!$A33,'Data 3 Accessories'!$A$8:$A$19,0),MATCH(Accessories!$C$6,'Data 3 Accessories'!$D$1:$AM$1,0)+1),ISNUMBER(SEARCH(\"vertical\",$C$6)),INDEX('Data 3 Accessories'!$D$32:$S$44,MATCH(Accessories!$A33,'Data 3 Accessories'!$A$32:$A$44,0),MATCH(Accessories!$C$6,'Data 3 Accessories'!$D$23:$S$23,0)+1),ISNUMBER(SEARCH(\"Soffit\",$C$6)),INDEX('Data 3 Accessories'!$D$46:$AM$64,MATCH(Accessories!$A33,'Data 3 Accessories'!$A$46:$A$64,0),MATCH(Accessories!$C$6,'Data 3 Accessories'!$D$46:$AM$46,0)+1))","v":{"$error":"#N/A"}},"Not defined",{"$f":"VLOOKUP(A33,'Data 3 Accessories'!$A$8:$C$44,2,FALSE)","v":{"$error":"#N/A"}},null,{"$error":"#N/A"}]
["* Estimated NET quantity. Values are estimated. Designer needs to calculate values according to project requirements."]

{"sheet":"Fixing material data","index":6,"n_rows":23,"n_cols":13,"rows_kept":23,"cut":false,"hidden":true,"merged":[[0,3,0,8],[2,3,2,4],[18,1,18,3],[17,0,17,4]]}
[null,null,null,"FIXING MATERIAL"]
[]
["Material of substructure","Minimal thickness of substructure (mm)","Material and thickness","Name of fixing screw",null,"Code of fixing screw"]
["Aluminium",3,{"$f":"A4&B4","v":"Aluminium3"},"Ejot JT4 6-5.5-30 A2",null,30028922,null,null,null,"Aluminium","Steel","INOX"]
["Aluminium",2,{"$f":"A5&B5","v":"Aluminium2"},"Ejot JT9 6-5.5-30 A4",null,30030791,null,null,null,2,2,2]
["Steel",2,"Steel2","Ejot JT3 6-5.5-35 A2",null,30023320,null,null,null,3]
["Steel",2,"Steel2","Ejot JT6 6-5.5-35 A4",null,30030795]
["Steel",2,"Steel2","SFS SX5 - 5.5-35 A2",null,30030780,null,null,null,"Aluminium3","Aluminium2","Steel2","INOX2"]
["Steel",2,"Steel2","SFS SX5 - 5.5-35 A4",null,30030781,null,null,null,"Ejot JT4 6-5.5-30 A2","Ejot JT9 6-5.5-30 A4","Ejot JT3 6-5.5-35 A2","Ejot JT3 6-5.5-35 A2"]
["INOX",2,"INOX2","Ejot JT3 6-5.5-35 A2",null,30023320,null,null,null,null,null,"Ejot JT6 6-5.5-35 A4","Ejot JT6 6-5.5-35 A4"]
["INOX",2,"INOX2","Ejot JT6 6-5.5-35 A4",null,30030795,null,null,null,null,null,"SFS SX5 - 5.5-35 A2"]
[null,null,null,null,null,null,null,null,null,null,null,"SFS SX5 - 5.5-35 A4"]
[]
[]
[]
[]
[]
["FIXING MATERIAL FOR LAP JOINT"]
["Material of substructure 1","Name of fixing screw 1",null,null,"Code of fixing screw"]
["Aluminium","Ejot JT4 6-5.5-22",null,null,"not defined",null,null,null,null,"Aluminium1","Steel1","INOX1"]
["Steel","Ejot JT2 6-5.5-22",null,null,null,null,null,null,null,"Ejot JT4 6-5.5-22","Ejot JT2 6-5.5-22","Ejot JT3 6-5.5-35 A2"]
["INOX","Ejot JT3 6-5.5-35 A2",null,null,"30023320",null,null,null,null,null,null,"Ejot JT6 6-5.5-35 A4"]
["INOX","Ejot JT6 6-5.5-35 A4",null,null,30030795]

{"sheet":"Transport","index":7,"n_rows":59,"n_cols":29,"rows_kept":59,"cut":false,"hidden":false,"merged":[[55,1,57,2],[5,16,5,17],[7,0,7,2],[9,6,9,7],[5,7,5,9],[4,14,4,15],[4,16,4,17],[5,14,5,15],[0,0,0,17],[2,14,2,15],[2,16,2,17],[3,14,3,15],[3,16,3,17]]}
["Qbiss Screen H+ Transport",null,null,null,null,null,null,null,null,null,null,null,null,null,null,null,null,null,null,"INSTRUCTIONS"]
[null,null,null,null,null,null,null,null,null,null,null,null,null,null,null,null,null,null,null,"Follow steps"]
[null,"Project name:",null,{"$f":"IF('CUTTING LIST'!C10=\"\",\"Insert text on first page\",'CUTTING LIST'!C10)","v":"Insert text"},null,null,null,null,null,null,null,null,null,null,"Date last saved:",null,{"$f":"ProfessorExcelLastSaveDate()","v":"2020-12-15T08:51:28"},null,null,"STEP 1: Select type of transport","You can select among Truck, Train, Ship transport. ",null,null,null,null,"MORE"]
[null,"Customer name:",null,{"$f":"IF('CUTTING LIST'!C11=\"\",\"Insert text on first page\",'CUTTING LIST'!C11)","v":"Insert text"},null,null,null,null,null,null,null,null,null,null,"Laste saved by:",null,{"$f":"ProfessorExcelLastSavedBy()","v":"Slanšek Matic"},null,null,"STEP 2: Select type of packaging","Select among standard and extended packaging. See the difference on the following",null,null,null,null,null,null,null,"LINK"]
[null,"Customer order no:",null,{"$f":"IF('CUTTING LIST'!C12=\"\",\"Insert text on first page\",'CUTTING LIST'!C12)","v":"Insert text"},null,null,null,null,null,null,null,null,null,null,"Cutting list number:",null,{"$f":"IF('CUTTING LIST'!N3=\"\",\"insert text of first page\",'CUTTING LIST'!N3)","v":"Insert"},null,null,"STEP 3: Select additional options"]
[null,null,null,null,null,null,null,null,null,null,null,null,null,null,"Revision:",null,{"$f":"IF('CUTTING LIST'!N4=\"\",\"insert text of first page\",'CUTTING LIST'!N4)","v":"Insert"},null,null,null,"EPS support blocks"]
[null,null,null,null,null,null,null,null,null,null,null,null,null,null,null,null,null,null,null,null,"Lifting bands"]
["STEP 1:",null,null,null,null,null,"STEP 2:",null,null,null,null,null,null,null,null,null,null,null,null,null,"Reinforcement pallets"]
["Select type of transport:",null,"MORE INFO"," section 2, 2.6, 2.7",null,null,"Select type of packaging:",null,"MORE INFO","section 2",null,null,null,null,null,null,null,null,null,null,"Stacking type in case of Qbiss One elements is always 10"]
["No_selection",null,null,null,null,null,"No selection"]
[]
[]
[]
[]
[]
[]
[]
["STEP 3:"]
["Additional packaging elements"]
["EPS support blocks",null,"No selection","MORE INFO",null,"section 2.4"]
[]
[]
[]
[]
[]
[]
[]
[]
[]
[]
[]
["Lifting bands 12€/package",null,"No selection","MORE INFO",null,"section 2.5"]
[]
[]
[]
[]
[]
[]
[]
["Reinforcement pallets",null,"No selection","MORE INFO",null,"section 2.5"]
[]
[]
[]
[]
[]
[]
[]
[]
[]
[]
[]
[]
["Stacking type",null,10,"MORE INFO",null,"section 2.10"]
[]
[null,"Required fields"]
[null,"Input data doesn't meet Qbiss One limitations - see INSTRUCTIONS on the right"]
[]
[]
[null,"Automatically filled"]

{"sheet":"Data 3 Accessories","index":8,"n_rows":108,"n_cols":39,"rows_kept":108,"cut":false,"hidden":true,"merged":[]}
[null,null,null,"B_B_Horizontal",null,"B_BF_Horizontal",null,"BF_B_Horizontal",null,"BF_BF_Horizontal",null,"F_B_Horizontal",null,"F_BF_Horizontal",null,"B_B_Horizontal_brick",null,"B_BF_Horizontal_brick",null,"BF_B_Horizontal_brick",null,"BF_BF_Horizontal_brick",null,"F_B_Horizontal_brick",null,"F_BF_Horizontal_brick",null,"B_B_Horizontal_asymmetrical_brick",null,"B_BF_Horizontal_asymmetrical_brick",null,"BF_B_Horizontal_asymmetrical_brick",null,"BF_BF_Horizontal_asymmetrical_brick",null,"F_B_Horizontal_asymmetrical_brick",null,"F_BF_Horizontal_asymmetrical_brick"]
[null,null,null,"Qbiss Screen H+ - B-B - Horizontal assembly","Note","Qbiss Screen H+ - B-BF - Horizontal assembly","Note","Qbiss Screen H+ - BF-B - Horizontal assembly","Note","Qbiss Screen H+ - BF-BF - Horizontal assembly","Note","Qbiss Screen H+ - F-B - Horizontal assembly","Note","Qbiss Screen H+ - F-BF - Horizontal assembly","Note","Qbiss Screen H+ - B-B - Brick assembly","Note","Qbiss Screen H+ - B-BF - Horizontal brick assembly","Note","Qbiss Screen H+ - BF-B - Horizontal brick assemly","Note","Qbiss Screen H+ - BF-BF - Horizontal brick assembly","Note","Qbiss Screen H+ - F-B - Horizontal brick assembly","Note","Qbiss Screen H+ - F-BF - Horizontal brick assembly","Note","Qbiss Screen H+ - B-B Horizontal asymmertical brick assembly","Note","Qbiss Screen H+ - B-BF - Horizontal brick assembly","Note","Qbiss Screen H+ - BF-B - Horizontal asymmetrical brick assembly","Note","Qbiss Screen H+ - BF-BF - Horizontal asymmetrical brick assembly","Note","Qbiss Screen H+ - F-B - Horizontal asymmetrical brick assembly","Note","Qbiss Screen H+ - F-BF - Horizontal asymmetrical brick assembly","Note"]
[]
[]
[]
["Primer šifre SAP",null,null,"QSH+-1000 SEREN WHITE PVDF40 70/0000 SP70",null,"Q100-1200 9006 PVDF 070/9006 SP 055-KT\nPROFIL HF52 RAL9006 PVDF 34.1x21 AL\nProfil HF 14 v sklopu panela na linij!",null,"Q100-1200 9006 PVDF 070/9006 SP 055-KT\nPROFIL HF40 RAL 9006 PVDF 13.1x20 AL\nProfil HF 55 v sklopu panela na linij!",null,"Q100-1200 9006 PVDF 070/9006 SP 055-KT\nPROFIL HF52 RAL9006 PVDF 34.1x21 AL\nProfil HF 55 v sklopu panela na linij!",null,"QFB100-1060 9006 PVDF 70/9002 SP50-KT\nPROFIL HF40 RAL 9006 PVDF 13.1x20 AL\nNi profila v sklopu panela na linij!",null,"QFB100-1060 9006 PVDF 70/9002 SP50-KT\nPROFIL HF52 RAL9006 PVDF 34.1x21 AL\nNi profila v sklopu panela na linij!",null,"Q100-1200 9006 PVDF 070/9006 SP 055-KT\nPROFIL HF40 RAL 9006 PVDF 13.1x20 AL\nProfil HF 14 v sklopu panela na linij!",null,"Q100-1200 9006 PVDF 070/9006 SP 055-KT\nPROFIL HF52 RAL9006 PVDF 34.1x21 AL\nProfil HF 14 v sklopu panela na linij!",null,"Q100-1200 9006 PVDF 070/9006 SP 055-KT\nPROFIL HF40 RAL 9006 PVDF 13.1x20 AL\nProfil HF 55 v sklopu panela na linij!",null,"Q100-1200 9006 PVDF 070/9006 SP 055-KT\nPROFIL HF52 RAL9006 PVDF 34.1x21 AL\nProfil HF 55 v sklopu panela na linij!",null,"QFB100-1060 9006 PVDF 70/9002 SP50-KT\nPROFIL HF40 RAL 9006 PVDF 13.1x20 AL\nNi profila v sklopu panela na linij!",null,"QFB100-1060 9006 PVDF 70/9002 SP50-KT\nPROFIL HF52 RAL9006 PVDF 34.1x21 AL\nNi profila v sklopu panela na linij!",null,"Q100-1200 9006 PVDF 070/9006 SP 055-KT\nPROFIL HF40 RAL 9006 PVDF 13.1x20 AL\nProfil HF 14 v sklopu panela na linij!",null,"Q100-1200 9006 PVDF 070/9006 SP 055-KT\nPROFIL HF52 RAL9006 PVDF 34.1x21 AL\nProfil HF 14 v sklopu panela na linij!",null,"Q100-1200 9006 PVDF 070/9006 SP 055-KT\nPROFIL HF40 RAL 9006 PVDF 13.1x20 AL\nProfil HF 55 v sklopu panela na linij!",null,"Q100-1200 9006 PVDF 070/9006 SP 055-KT\nPROFIL HF52 RAL9006 PVDF 34.1x21 AL\nProfil HF 55 v sklopu panela na linij!",null,"QFB100-1060 9006 PVDF 70/9002 SP50-KT\nPROFIL HF40 RAL 9006 PVDF 13.1x20 AL\nNi profila v sklopu panela na linij!",null,"QFB100-1060 9006 PVDF 70/9002 SP50-KT\nPROFIL HF52 RAL9006 PVDF 34.1x21 AL\nNi profila v sklopu panela na linij!"]
[]
["Fixing_screw","pcs",null,"Type of screw depends on the material of the substructure (wind load)","NOT included in element price; quantity of screws according to structural calculation; dimension of screw is based on element module and thickness of steel (sub)structure ","self-tapping or self-drilling; see table","NOT included in element price; quantity of screws according to structural calculation; dimension of screw is based on element thickness and thickness of steel (sub)structure ","self-tapping or self-drilling; see table","NOT included in element price; quantity of screws according to structural calculation; dimension of screw is based on element thickness and thickness of steel (sub)structure ","self-tapping or self-drilling; see table","NOT included in element price; quantity of screws according to structural calculation; dimension of screw is based on element thickness and thickness of steel (sub)structure ","Type of screw depends on the material of the substructure (wind load)","NOT included in element price; quantity of screws according to structural calculation; dimension of screw is based on element module and thickness of steel (sub)structure ","self-tapping or self-drilling; see table","NOT included in element price; quantity of screws according to structural calculation; dimension of screw is based on element thickness and thickness of steel (sub)structure ","Type of screw depends on the material of the substructure (wind load)","NOT included in element price; quantity of screws according to structural calculation; dimension of screw is based on element module and thickness of steel (sub)structure ","self-tapping or self-drilling; see table","NOT included in element price; quantity of screws according to structural calculation; dimension of screw is based on element thickness and thickness of steel (sub)structure ","self-tapping or self-drilling; see table","NOT included in element price; quantity of screws according to structural calculation; dimension of screw is based on element thickness and thickness of steel (sub)structure ","self-tapping or self-drilling; see table","NOT included in element price; quantity of screws according to structural calculation; dimension of screw is based on element thickness and thickness of steel (sub)structure ","Type of screw depends on the material of the substructure (wind load)","NOT included in element price; quantity of screws according to structural calculation; dimension of screw is based on element module and thickness of steel (sub)structure ","self-tapping or self-drilling; see table","NOT included in element price; quantity of screws according to structural calculation; dimension of screw is based on element thickness and thickness of steel (sub)structure ","Type of screw depends on the material of the substructure (wind load)","NOT included in element price; quantity of screws according to structural calculation; dimension of screw is based on element module and thickness of steel (sub)structure ","self-tapping or self-drilling; see table","NOT included in element price; quantity of screws according to structural calculation; dimension of screw is based on element thickness and thickness of steel (sub)structure ","self-tapping or self-drilling; see table","NOT included in element price; quantity of screws according to structural calculation; dimension of screw is based on element thickness and thickness of steel (sub)structure ","self-tapping or self-drilling; see table","NOT included in element price; quantity of screws according to structural calculation; dimension of screw is based on element thickness and thickness of steel (sub)structure ","Type of screw depends on the material of the substructure (wind load)","NOT included in element price; quantity of screws according to structural calculation; dimension of screw is based on element module and thickness of steel (sub)structure ","self-tapping or self-drilling; see table","NOT included in element price; quantity of screws according to structural calculation; dimension of screw is based on element thickness and thickness of steel (sub)structure "]
["Fixing_screw_for_LAP_joint","pcs",null,"Type of screw depends on the material of the substructure (self weight load)","NOT included in element price; suggested quantity of screws 4 pcs per each facade element.","self-tapping or self-drilling; see table","NOT included in element price; suggested quantity of screws 1-2 pcs per each facade element (depends on type and size of element)","self-tapping or self-drilling; see table","NOT included in element price; suggested quantity of screws 1-2 pcs per each facade element (depends on type and size of element)","self-tapping or self-drilling; see table","NOT included in element price; suggested quantity of screws 1-2 pcs per each facade element (depends on type and size of element)","Type of screw depends on the material of the substructure (self weight load)","NOT included in element price; suggested quantity of screws 4 pcs per each facade element.","self-tapping or self-drilling; see table","NOT included in element price; suggested quantity of screws 1-2 pcs per each facade element (depends on type and size of element)","Type of screw depends on the material of the substructure (self weight load)","NOT included in element price; suggested quantity of screws 4 pcs per each facade element.","self-tapping or self-drilling; see table","NOT included in element price; suggested quantity of screws 1-2 pcs per each facade element (depends on type and size of element)","self-tapping or self-drilling; see table","NOT included in element price; suggested quantity of screws 1-2 pcs per each facade element (depends on type and size of element)","self-tapping or self-drilling; see table","NOT included in element price; suggested quantity of screws 1-2 pcs per each facade element (depends on type and size of element)","Type of screw depends on the material of the substructure (self weight load)","NOT included in element price; suggested quantity of screws 4 pcs per each facade element.","self-tapping or self-drilling; see table","NOT included in element price; suggested quantity of screws 1-2 pcs per each facade element (depends on type and size of element)","Type of screw depends on the material of the substructure (self weight load)","NOT included in element price; suggested quantity of screws 4 pcs per each facade element.","self-tapping or self-drilling; see table","NOT included in element price; suggested quantity of screws 1-2 pcs per each facade element (depends on type and size of element)","self-tapping or self-drilling; see table","NOT included in element price; suggested quantity of screws 1-2 pcs per each facade element (depends on type and size of element)","self-tapping or self-drilling; see table","NOT included in element price; suggested quantity of screws 1-2 pcs per each facade element (depends on type and size of element)","Type of screw depends on the material of the substructure (self weight load)","NOT included in element price; suggested quantity of screws 4 pcs per each facade element.","self-tapping or self-drilling; see table","NOT included in element price; suggested quantity of screws 1-2 pcs per each facade element (depends on type and size of element)"]
["Silicone_Transversal_Gasket","m",null,"T052\n30030237\ncut to size for brick","included in element price; quantity of transversal (vertical) joint","T052\n30014372\ncut to size for brick","included in element price; quantity of transversal (vertical) joint","T052\n30014372\ncut to size for brick","included in element price; quantity of transversal (vertical) joint","T052\n30014372\ncut to size for brick","included in element price; quantity of transversal (vertical) joint","T052\n30030237\ncut to size for brick","included in element price; quantity of transversal (vertical) joint","T052\n30014372\ncut to size for brick","included in element price; quantity of transversal (vertical) joint","T052\n30030237\ncut to size for brick","included in element price; quantity of transversal (vertical) joint","T052\n30014372\ncut to size for brick","included in element price; quantity of transversal (vertical) joint","T052\n30014372\ncut to size for brick","included in element price; quantity of transversal (vertical) joint","T052\n30014372\ncut to size for brick","included in element price; quantity of transversal (vertical) joint","T052\n30030237\ncut to size for brick","included in element price; quantity of transversal (vertical) joint","T052\n30014372\ncut to size for brick","included in element price; quantity of transversal (vertical) joint","T052\n30030237\ncut to size for brick","included in element price; quantity of transversal (vertical) joint","T052\n30014372\ncut to size for brick","included in element price; quantity of transversal (vertical) joint","T052\n30014372\ncut to size for brick","included in element price; quantity of transversal (vertical) joint","T052\n30014372\ncut to size for brick","included in element price; quantity of transversal (vertical) joint","T052\n30030237\ncut to size for brick","included in element price; quantity of transversal (vertical) joint","T052\n30014372\ncut to size for brick","included in element price; quantity of transversal (vertical) joint"]
["Decorative_ALU_extrusion","m",null,"A023 (HF64)\nSAP code colour specific\ncut to size for brick","included in element price; quantity of transversal (vertical) joint; supplied in 6,5 m lenghts; specify color","A097 (HF52)\nSAP code colour specific\ncut to size for brick ???\n30018981 tesnilo EPDM 20X20X15 ?","included in element price; quantity of transversal (vertical) joint; supplied in 4 m lenghts; specify color","A023 (HF40)\nSAP code colour specific\ncut to size for brick","included in element price; quantity of transversal (vertical) joint; supplied in 4 m lenghts; specify color","A097 (HF52)\nSAP code colour specific\ncut to size for brick ???\n30018981 tesnilo EPDM 20X20X15 ?","included in element price; quantity of transversal (vertical) joint; supplied in 4 m lenghts; specify color","A023 (HF64)\nSAP code colour specific\ncut to size for brick","included in element price; quantity of transversal (vertical) joint; supplied in 6,5 m lenghts; specify color","A097 (HF52)\nSAP code colour specific\ncut to size for brick ???\n30018981 tesnilo EPDM 20X20X15 ?","included in element price; quantity of transversal (vertical) joint; supplied in 4 m lenghts; specify color","A023 (HF64)\nSAP code colour specific\ncut to size for brick","included in element price; quantity of transversal (vertical) joint; supplied in 6,5 m lenghts; specify color","A097 (HF52)\nSAP code colour specific\ncut to size for brick ???\n30018981 tesnilo EPDM 20X20X15 ?","included in element price; quantity of transversal (vertical) joint; supplied in 4 m lenghts; specify color","A023 (HF40)\nSAP code colour specific\ncut to size for brick","included in element price; quantity of transversal (vertical) joint; supplied in 4 m lenghts; specify color","A097 (HF52)\nSAP code colour specific\ncut to size for brick ???\n30018981 tesnilo EPDM 20X20X15 ?","included in element price; quantity of transversal (vertical) joint; supplied in 4 m lenghts; specify color","A023 (HF64)\nSAP code colour specific\ncut to size for brick","included in element price; quantity of transversal (vertical) joint; supplied in 6,5 m lenghts; specify color","A097 (HF52)\nSAP code colour specific\ncut to size for brick ???\n30018981 tesnilo EPDM 20X20X15 ?","included in element price; quantity of transversal (vertical) joint; supplied in 4 m lenghts; specify color","A023 (HF64)\nSAP code colour specific\ncut to size for brick","included in element price; quantity of transversal (vertical) joint; supplied in 6,5 m lenghts; specify color","A097 (HF52)\nSAP code colour specific\ncut to size for brick ???\n30018981 tesnilo EPDM 20X20X15 ?","included in element price; quantity of transversal (vertical) joint; supplied in 4 m lenghts; specify color","A023 (HF40)\nSAP code colour specific\ncut to size for brick","included in element price; quantity of transversal (vertical) joint; supplied in 4 m lenghts; specify color","A097 (HF52)\nSAP code colour specific\ncut to size for brick ???\n30018981 tesnilo EPDM 20X20X15 ?","included in element price; quantity of transversal (vertical) joint; supplied in 4 m lenghts; specify color","A023 (HF64)\nSAP code colour specific\ncut to size for brick","included in element price; quantity of transversal (vertical) joint; supplied in 6,5 m lenghts; specify color","A097 (HF52)\nSAP code colour specific\ncut to size for brick ???\n30018981 tesnilo EPDM 20X20X15 ?","included in element price; quantity of transversal (vertical) joint; supplied in 4 m lenghts; specify color"]
["Installation_Kit_Package_includes_spacer_crosses_wooden_pad_spray_with_soapy_water_and_installation_manual","pcs",null,"Installation Kit Package HR Basic            SAP: 30030778","included in element price; quantity 1 pcs per order plus additional 1 pcs for each 500 m2","PAKET MONTAŽNI MALI QBISS HORIZONTAL\n30007109\n\nPAKET MONTAŽNI MALI QBISS BRICK\n30018303","included in element price; quantity 1 pcs per order plus additional 1 pcs for each 500 m2","PAKET MONTAŽNI MALI QBISS HORIZONTAL\n30007109\n\nNavodilo (imamo za B) - potrebno dopolnit.\nKriž od B je ustrezen.\n\nKriž za Brick ni potreben.","included in element price; quantity 1 pcs per order plus additional 1 pcs for each 500 m2","PAKET MONTAŽNI MALI QBISS HORIZONTAL\n30007109\n\nNavodilo (imamo za B) - potrebno dopolnit.\nKriž od B je ustrezen.\n\nKriž za Brick ni potreben.","included in element price; quantity 1 pcs per order plus additional 1 pcs for each 500 m2","PAKET MONTAŽNI QBISS SCREEN HR Basic            SAP: 30030779","included in element price; quantity 1 pcs per order plus additional 1 pcs for each 500 m2","Navodilo - potrebno pripravit.\nKriž (od F) je ustrezen.\n\nKriž za Brick ni potreben.","included in element price; quantity 1 pcs per order plus additional 1 pcs for each 500 m2","PAKET MONTAŽNI QBISS SCREEN HR Basic            SAP: 30030778","included in element price; quantity 1 pcs per order plus additional 1 pcs for each 500 m2","PAKET MONTAŽNI MALI QBISS HORIZONTAL\n30007109\n\nPAKET MONTAŽNI MALI QBISS BRICK\n30018303","included in element price; quantity 1 pcs per order plus additional 1 pcs for each 500 m2","PAKET MONTAŽNI MALI QBISS HORIZONTAL\n30007109\n\nNavodilo (imamo za B) - potrebno dopolnit.\nKriž od B je ustrezen.\n\nKriž za Brick ni potreben.","included in element price; quantity 1 pcs per order plus additional 1 pcs for each 500 m2","PAKET MONTAŽNI MALI QBISS HORIZONTAL\n30007109\n\nNavodilo (imamo za B) - potrebno dopolnit.\nKriž od B je ustrezen.\n\nKriž za Brick ni potreben.","included in element price; quantity 1 pcs per order plus additional 1 pcs for each 500 m2","PAKET MONTAŽNI QBISS SCREEN HR Basic            SAP: 30030779","included in element price; quantity 1 pcs per order plus additional 1 pcs for each 500 m2","Navodilo - potrebno pripravit.\nKriž (od F) je ustrezen.\n\nKriž za Brick ni potreben.","included in element price; quantity 1 pcs per order plus additional 1 pcs for each 500 m2","PAKET MONTAŽNI QBISS SCREEN HR Basic            SAP: 30030778","included in element price; quantity 1 pcs per order plus additional 1 pcs for each 500 m2","PAKET MONTAŽNI MALI QBISS HORIZONTAL\n30007109\n\nPAKET MONTAŽNI MALI QBISS BRICK\n30018303","included in element price; quantity 1 pcs per order plus additional 1 pcs for each 500 m2","PAKET MONTAŽNI MALI QBISS HORIZONTAL\n30007109\n\nNavodilo (imamo za B) - potrebno dopolnit.\nKriž od B je ustrezen.\n\nKriž za Brick ni potreben.","included in element price; quantity 1 pcs per order plus additional 1 pcs for each 500 m2","PAKET MONTAŽNI MALI QBISS HORIZONTAL\n30007109\n\nNavodilo (imamo za B) - potrebno dopolnit.\nKriž od B je ustrezen.\n\nKriž za Brick ni potreben.","included in element price; quantity 1 pcs per order plus additional 1 pcs for each 500 m2","PAKET MONTAŽNI QBISS SCREEN HR Basic            SAP: 30030779","included in element price; quantity 1 pcs per order plus additional 1 pcs for each 500 m2","Navodilo - potrebno pripravit.\nKriž (od F) je ustrezen.\n\nKriž za Brick ni potreben.","included in element price; quantity 1 pcs per order plus additional 1 pcs for each 500 m2"]
["EPDM_cube_Gasket_26x26x30","pcs",null,"T022\nSAP: 30007025","NOT included in element price; quantity as per details","T022\n30007025","NOT included in element price; quantity as per details","T022\n30007025","NOT included in element price; quantity as per details","not required","NOT included in element price; quantity as per details","T022\nSAP: 30007025","NOT included in element price; quantity as per details","not required","NOT included in element price; quantity as per details","T022\nSAP: 30007025","NOT included in element price; quantity as per details","T022\n30007025","NOT included in element price; quantity as per details","T022\n30007025","NOT included in element price; quantity as per details","not required","NOT included in element price; quantity as per details","T022\nSAP: 30007025","NOT included in element price; quantity as per details","not required","NOT included in element price; quantity as per details","T022\nSAP: 30007025","NOT included in element price; quantity as per details","T022\n30007025","NOT included in element price; quantity as per details","T022\n30007025","NOT included in element price; quantity as per details","not required","NOT included in element price; quantity as per details","T022\nSAP: 30007025","NOT included in element price; quantity as per details","not required","NOT included in element price; quantity as per details"]
["Fixing_profile_HF63_wind_load","pcs",null,"N637                            SAP:81006837","Included in element price, depending on type of element, any additional elements required  for i.e. connection to other façade system not included, quantity subject to design information ","N637\n30006944","Included in element price, depending on type of element, any additional elements required  for i.e. connection to other façade system not included, quantity subject to design information ","N637\n30006944","Included in element price, depending on type of element, any additional elements required  for i.e. connection to other façade system not included, quantity subject to design information ","N637\n30006944","Included in element price, depending on type of element, any additional elements required  for i.e. connection to other façade system not included, quantity subject to design information ","SAP:81006837","Included in element price, depending on type of element, any additional elements required  for i.e. connection to other façade system not included, quantity subject to design information ","N637\n30006944","Included in element price, depending on type of element, any additional elements required  for i.e. connection to other façade system not included, quantity subject to design information ","SAP:81006837","Included in element price, depending on type of element, any additional elements required  for i.e. connection to other façade system not included, quantity subject to design information ","N637\n30006944","Included in element price, depending on type of element, any additional elements required  for i.e. connection to other façade system not included, quantity subject to design information ","N637\n30006944","Included in element price, depending on type of element, any additional elements required  for i.e. connection to other façade system not included, quantity subject to design information ","N637\n30006944","Included in element price, depending on type of element, any additional elements required  for i.e. connection to other façade system not included, quantity subject to design information ","SAP:81006837","Included in element price, depending on type of element, any additional elements required  for i.e. connection to other façade system not included, quantity subject to design information ","N637\n30006944","Included in element price, depending on type of element, any additional elements required  for i.e. connection to other façade system not included, quantity subject to design information ","SAP:81006837","Included in element price, depending on type of element, any additional elements required  for i.e. connection to other façade system not included, quantity subject to design information ","N637\n30006944","Included in element price, depending on type of element, any additional elements required  for i.e. connection to other façade system not included, quantity subject to design information ","N637\n30006944","Included in element price, depending on type of element, any additional elements required  for i.e. connection to other façade system not included, quantity subject to design information ","N637\n30006944","Included in element price, depending on type of element, any additional elements required  for i.e. connection to other façade system not included, quantity subject to design information ","SAP:81006837","Included in element price, depending on type of element, any additional elements required  for i.e. connection to other façade system not included, quantity subject to design information ","N637\n30006944","Included in element price, depending on type of element, any additional elements required  for i.e. connection to other façade system not included, quantity subject to design information "]
["Mastic_seal_Polysiloxane_based_required_for_EPDM_cube_and_internal_joint_sealing","pcs",null,"SAP: 30024285","NOT included in price - quantity as required by installer","T022\n30007025","NOT included in element price; quantity as per details","T022\n30007025","NOT included in element price; quantity as per details","not required","NOT included in element price; quantity as per details","SAP: 30024285","NOT included in price - quantity as required by installer","not required","NOT included in element price; quantity as per details","SAP: 30024285","NOT included in price - quantity as required by installer","T022\n30007025","NOT included in element price; quantity as per details","T022\n30007025","NOT included in element price; quantity as per details","not required","NOT included in element price; quantity as per details","SAP: 30024285","NOT included in price - quantity as required by installer","not required","NOT included in element price; quantity as per details","SAP: 30024285","NOT included in price - quantity as required by installer","T022\n30007025","NOT included in element price; quantity as per details","T022\n30007025","NOT included in element price; quantity as per details","not required","NOT included in element price; quantity as per details","SAP: 30024285","NOT included in price - quantity as required by installer","not required","NOT included in element price; quantity as per details"]
["Electrochemical_potential_insulation_tape_self_adhesive_PE_or_EPDM_dimension_05x100_120 ","pcs",null,null,"NOT included in price - quantity as required by installer","T051\n30006438\nxxx Support of decorative profile","NOT included in price - quantity 1 pcs for each transversal (vertical) joint in connection to drip detail and above window/door/opening profile","T051\n30006438","NOT included in price - quantity 1 pcs for each transversal (vertical) joint in connection to drip detail and above window/door/opening profile","T051\n30006438\nxxx Support of decorative profile","NOT included in price - quantity 1 pcs for each transversal (vertical) joint in connection to drip detail and above window/door/opening profile",null,"NOT included in price - quantity as required by installer","T051\n30006438\nxxx Support of decorative profile","NOT included in price - quantity 1 pcs for each transversal (vertical) joint in connection to drip detail and above window/door/opening profile",null,"NOT included in price - quantity as required by installer","T051\n30006438\nxxx Support of decorative profile","NOT included in price - quantity 1 pcs for each transversal (vertical) joint in connection to drip detail and above window/door/opening profile","T051\n30006438","NOT included in price - quantity 1 pcs for each transversal (vertical) joint in connection to drip detail and above window/door/opening profile","T051\n30006438\nxxx Support of decorative profile","NOT included in price - quantity 1 pcs for each transversal (vertical) joint in connection to drip detail and above window/door/opening profile",null,"NOT included in price - quantity as required by installer","T051\n30006438\nxxx Support of decorative profile","NOT included in price - quantity 1 pcs for each transversal (vertical) joint in connection to drip detail and above window/door/opening profile",null,"NOT included in price - quantity as required by installer","T051\n30006438\nxxx Support of decorative profile","NOT included in price - quantity 1 pcs for each transversal (vertical) joint in connection to drip detail and above window/door/opening profile","T051\n30006438","NOT included in price - quantity 1 pcs for each transversal (vertical) joint in connection to drip detail and above window/door/opening profile","T051\n30006438\nxxx Support of decorative profile","NOT included in price - quantity 1 pcs for each transversal (vertical) joint in connection to drip detail and above window/door/opening profile",null,"NOT included in price - quantity as required by installer","T051\n30006438\nxxx Support of decorative profile","NOT included in price - quantity 1 pcs for each transversal (vertical) joint in connection to drip detail and above window/door/opening profile"]
["EMPTY",null,null,null,null,"O655\n30026912","NOT included in price - quantity 1 pcs for each transversal (vertical) joint in connection to detail with face flashing for window/door/opening","O655\n30026912","NOT included in price - quantity 1 pcs for each transversal (vertical) joint in connection to detail with face flashing for window/door/opening","O655\n30026912","NOT included in price - quantity 1 pcs for each transversal (vertical) joint in connection to detail with face flashing for window/door/opening",null,null,"O655\n30026912","NOT included in price - quantity 1 pcs for each transversal (vertical) joint in connection to detail with face flashing for window/door/opening",null,null,"O655\n30026912","NOT included in price - quantity 1 pcs for each transversal (vertical) joint in connection to detail with face flashing for window/door/opening","O655\n30026912","NOT included in price - quantity 1 pcs for each transversal (vertical) joint in connection to detail with face flashing for window/door/opening","O655\n30026912","NOT included in price - quantity 1 pcs for each transversal (vertical) joint in connection to detail with face flashing for window/door/opening",null,null,"O655\n30026912","NOT included in price - quantity 1 pcs for each transversal (vertical) joint in connection to detail with face flashing for window/door/opening",null,null,"O655\n30026912","NOT included in price - quantity 1 pcs for each transversal (vertical) joint in connection to detail with face flashing for window/door/opening","O655\n30026912","NOT included in price - quantity 1 pcs for each transversal (vertical) joint in connection to detail with face flashing for window/door/opening","O655\n30026912","NOT included in price - quantity 1 pcs for each transversal (vertical) joint in connection to detail with face flashing for window/door/opening",null,null,"O655\n30026912","NOT included in price - quantity 1 pcs for each transversal (vertical) joint in connection to detail with face flashing for window/door/opening"]
[]
[]
[]
[]
[]
["NAME",null,null,"B_B_Vertical",null,"B_BF_Vertical",null,"BF_B_Vertical",null,"BF_BF_Vertical",null,"B_B_Vertical_brick",null,"B_BF_Vertical_brick",null,"BF_B_Vertical_brick",null,"BF_BF_Vertical_brick"]
[null,null,null,"Qbiss Screen H+ - B-B - Vertical assembly",null,"Qbiss Screen H+ - B-BF - Vertical assembly",null,"Qbiss Screen H+ - BF-B - Vertical assembly",null,"Qbiss Screen H+ - BF-BF - Vertical assembly",null,"Qbiss Screen H+ - B-B - Vertical brick assembly",null,"Qbiss Screen H+ - B-BF - Vertical brick assembly",null,"Qbiss Screen H+ - BF-B - Vertical brick assembly",null,"Qbiss Screen H+ - BF-BF - Vertical brick assembly"]
[]
[]
[]
[]
[]
["Primer šifre SAP",null,null,"QSH+ 1200 SILMET PURPA70/SILMET PURPA 70  PROFIL HF64 RAL 9006 PVDF 9x19 AL        Profil HF14 v sklopu panela na liniji",null,"Q100-1200 9006 PVDF 070/9006 SP 055-KT\nPROFIL HF52 RAL9006 PVDF 34.1x21 AL\nProfil HF 14 v sklopu panela na linij!",null,"Q100-1200 9006 PVDF 070/9006 SP 055-KT\nPROFIL HF40 RAL 9006 PVDF 13.1x20 AL\nProfil HF 55 v sklopu panela na linij!",null,"Q100-1200 9006 PVDF 070/9006 SP 055-KT\nPROFIL HF52 RAL9006 PVDF 34.1x21 AL\nProfil HF 55 v sklopu panela na linij!",null,"QSH+ 1200 SILMET PURPA70/SILMET PUROA 70100-1200 9006 PVDF 070/9006 SP 055-KT\nPROFIL HF64 RAL 9006 PVDF 9x19 AL\nProfil HF 14 v sklopu panela na linij!",null,"Q100-1200 9006 PVDF 070/9006 SP 055-KT\nPROFIL HF52 RAL9006 PVDF 34.1x21 AL\nProfil HF 14 v sklopu panela na linij!",null,"Q100-1200 9006 PVDF 070/9006 SP 055-KT\nPROFIL HF40 RAL 9006 PVDF 13.1x20 AL\nProfil HF 55 v sklopu panela na linij!",null,"Q100-1200 9006 PVDF 070/9006 SP 055-KT\nPROFIL HF52 RAL9006 PVDF 34.1x21 AL\nProfil HF 55 v sklopu panela na linij!"]
[]
["Wind_load_fixing_screw","pcs",null,"Type of screw depends on the material of the substructure (wind load)","NOT included in element price; quantity of screws according to structural calculation; dimension of screw is based on element module and thickness of steel (sub)structure ","Type of screw depends on the material of the substructure (wind load)","NOT included in element price; quantity of screws according to structural calculation; dimension of screw is based on element thickness and thickness of steel (sub)structure ","Type of screw depends on the material of the substructure (wind load)","NOT included in element price; quantity of screws according to structural calculation; dimension of screw is based on element thickness and thickness of steel (sub)structure ","Type of screw depends on the material of the substructure (wind load)","NOT included in element price; quantity of screws according to structural calculation; dimension of screw is based on element thickness and thickness of steel (sub)structure ","Type of screw depends on the material of the substructure (wind load)","NOT included in element price; quantity of screws according to structural calculation; dimension of screw is based on element module and thickness of steel (sub)structure ","Type of screw depends on the material of the substructure (wind load)","NOT included in element price; quantity of screws according to structural calculation; dimension of screw is based on element thickness and thickness of steel (sub)structure ","Type of screw depends on the material of the substructure (wind load)","NOT included in element price; quantity of screws according to structural calculation; dimension of screw is based on element thickness and thickness of steel (sub)structure ","Type of screw depends on the material of the substructure (wind load)","NOT included in element price; quantity of screws according to structural calculation; dimension of screw is based on element thickness and thickness of steel (sub)structure "]
["Self_weight_fixing_screw","pcs",null,"Type of screw depends on the material of the substructure (self weight load)","NOT included in element price; suggested quantity of screws 8 pcs per each facade element.","Type of screw depends on the material of the substructure (self weight load)","NOT included in element price; suggested quantity of screws 4 pcs per each facade element.","Type of screw depends on the material of the substructure (self weight load)","NOT included in element price; suggested quantity of screws 4 pcs per each facade element.","Type of screw depends on the material of the substructure (self weight load)","NOT included in element price; suggested quantity of screws 4 pcs per each facade element.","Type of screw depends on the material of the substructure (self weight load)","NOT included in element price; suggested quantity of screws 8 pcs per each facade element.","Type of screw depends on the material of the substructure (self weight load)","NOT included in element price; suggested quantity of screws 4 pcs per each facade element.","Type of screw depends on the material of the substructure (self weight load)","NOT included in element price; suggested quantity of screws 4 pcs per each facade element.","Type of screw depends on the material of the substructure (self weight load)","NOT included in element price; suggested quantity of screws 4 pcs per each facade element."]
["Silicone_Transversal_Gasket","m",null,"T052\n30030237\ncut to size for brick","included in element price; quantity of transversal (horizontal) joint","T052\n30014372\ncut to size for brick","included in element price; quantity of transversal (vertical) joint","T052\n30014372\ncut to size for brick","included in element price; quantity of transversal (vertical) joint","T052\n30014372\ncut to size for brick","included in element price; quantity of transversal (vertical) joint","T052\n30030237\ncut to size for brick","included in element price; quantity of transversal (horizontal) joint","T052\n30014372\ncut to size for brick","included in element price; quantity of transversal (vertical) joint","T052\n30014372\ncut to size for brick","included in element price; quantity of transversal (vertical) joint","T052\n30014372\ncut to size for brick","included in element price; quantity of transversal (vertical) joint"]
["Decorative_ALU_extrusion","m",null,"A023 (HF64)\nSAP code colour specific\ncut to size for brick","included in element price; quantity of transversal (horizontal) joint; supplied in 6,5 m lenghts; specify color","A023 (HF40)\nSAP code colour specific\ncut to size for brick","included in element price; quantity of transversal (vertical) joint; supplied in 4 m lenghts; specify color","A023 (HF40)\nSAP code colour specific\ncut to size for brick","included in element price; quantity of transversal (vertical) joint; supplied in 4 m lenghts; specify color","A023 (HF40)\nSAP code colour specific\ncut to size for brick","included in element price; quantity of transversal (vertical) joint; supplied in 4 m lenghts; specify color","A023 (HF64)\nSAP code colour specific\ncut to size for brick","included in element price; quantity of transversal (horizontal) joint; supplied in 6,5 m lenghts; specify color","A023 (HF40)\nSAP code colour specific\ncut to size for brick","included in element price; quantity of transversal (vertical) joint; supplied in 4 m lenghts; specify color","A023 (HF40)\nSAP code colour specific\ncut to size for brick","included in element price; quantity of transversal (vertical) joint; supplied in 4 m lenghts; specify color","A023 (HF40)\nSAP code colour specific\ncut to size for brick","included in element price; quantity of transversal (vertical) joint; supplied in 4 m lenghts; specify color"]
["Installation_Kit_Package_includes_spacer_crosses_wooden_pad_spray_with_soapy_water_and_installation_manual","m",null,"Installation Kit Package HR Basic            SAP: 30030778","included in element price; quantity 1 pcs per order plus additional 1 pcs for each 500 m2","PAKET MONTAŽNI QBISS SCREEN H 30029187\n","included in element price; quantity 1 pcs per order plus additional 1 pcs for each 500 m2","PAKET MONTAŽNI QBISS SCREEN H 30029187\n",null,"PAKET MONTAŽNI QBISS SCREEN H 30029187\n","included in element price; quantity 1 pcs per order plus additional 1 pcs for each 500 m2","PAKET MONTAŽNI QBISS SCREEN HR Basic            SAP: 30030778","included in element price; quantity 1 pcs per order plus additional 1 pcs for each 500 m2","PAKET MONTAŽNI QBISS SCREEN H 30029187\n","included in element price; quantity 1 pcs per order plus additional 1 pcs for each 500 m2","PAKET MONTAŽNI QBISS SCREEN H 30029187\n","included in element price; quantity 1 pcs per order plus additional 1 pcs for each 500 m2","PAKET MONTAŽNI QBISS SCREEN H 30029187\n","included in element price; quantity 1 pcs per order plus additional 1 pcs for each 500 m2"]
["EPDM_cube_Gasket_26x26x30","pcs",null,"T022\nSAP: 30007025","NOT included in element price; quantity as per details","T022\n30007025","NOT included in element price; quantity as per details","T022\n30007025","NOT included in element price; quantity as per details","T022\n30007025","NOT included in element price; quantity as per details","T022\nSAP: 30007025","NOT included in element price; quantity as per details","T022\n30007025","NOT included in element price; quantity as per details","T022\n30007025","NOT included in element price; quantity as per details","T022\n30007025","NOT included in element price; quantity as per details"]
["Fixing_profile_HF63_wind_load","pcs",null,"N637                           SAP:81006837","Included in element price, depending on type of element, any additional elements required  for i.e. connection to other façade system not included, quantity subject to design information ","N637\n30006944","Included in element price, depending on type of element, any additional elements required  for i.e. connection to other façade system not included, quantity subject to design information ","N637\n30006944","Included in element price, depending on type of element, any additional elements required  for i.e. connection to other façade system not included, quantity subject to design information ","N637\n30006944","Included in element price, depending on type of element, any additional elements required  for i.e. connection to other façade system not included, quantity subject to design information ","SAP:81006837","Included in element price, depending on type of element, any additional elements required  for i.e. connection to other façade system not included, quantity subject to design information ","N637\n30006944","Included in element price, depending on type of element, any additional elements required  for i.e. connection to other façade system not included, quantity subject to design information ","N637\n30006944","Included in element price, depending on type of element, any additional elements required  for i.e. connection to other façade system not included, quantity subject to design information ","N637\n30006944","Included in element price, depending on type of element, any additional elements required  for i.e. connection to other façade system not included, quantity subject to design information "]
["Mastic_seal_Polysiloxane_based_required_for_EPDM_cube_and_internal_joint_sealing","m",null,"SAP: 30024285","NOT included in price - quantity as required by installer","SAP: 30024285","NOT included in price - quantity as required by installer","SAP: 30024285","NOT included in price - quantity as required by installer","SAP: 30024285","NOT included in price - quantity as required by installer","SAP: 30024285","NOT included in price - quantity as required by installer","SAP: 30024285","NOT included in price - quantity as required by installer","SAP: 30024285","NOT included in price - quantity as required by installer","SAP: 30024285","NOT included in price - quantity as required by installer"]
["Electrochemical_potential_insulation_tape_self_adhesive_PE_or_EPDM_dimension_05x100_120 ","pcs",null,null,"NOT included in price - quantity as required by installer",null,"NOT included in price - quantity as required by installer",null,"NOT included in price - quantity as required by installer",null,"NOT included in price - quantity as required by installer",null,"NOT included in price - quantity as required by installer",null,"NOT included in price - quantity as required by installer",null,"NOT included in price - quantity as required by installer",null,"NOT included in price - quantity as required by installer"]
["EMPTY","pcs",null,null,null,"T102\n30016941","NOT included in element price;quantity min. 1 per façade element","T102\n30016941","NOT included in element price;quantity min. 1 per façade element","T102\n30016941","NOT included in element price;quantity min. 1 per façade element",null,null,"T102\n30016941","NOT included in element price;quantity min. 1 per façade element","T102\n30016941","NOT included in element price;quantity min. 1 per façade element","T102\n30016941","NOT included in element price;quantity min. 1 per façade element"]
[null,null,null,null,null,"PS 130\n30029421","NOT included in element price; quantity as required by installer","PS 130\n30029421","NOT included in element price; quantity as required by installer","PS 130\n30029421","NOT included in element price; quantity as required by installer",null,null,"PS 130\n30029421","NOT included in element price; quantity as required by installer","PS 130\n30029421","NOT included in element price; quantity as required by installer","PS 130\n30029421","NOT included in element price; quantity as required by installer"]
[null,null,null,null,null,null,"NOT included in element price; quantity as required by installer",null,"NOT included in element price; quantity as required by installer",null,"NOT included in element price; quantity as required by installer",null,null,null,"NOT included in element price; quantity as required by installer",null,"NOT included in element price; quantity as required by installer",null,"NOT included in element price; quantity as required by installer"]
[]
[]
["NAME",null,null,"B_B_Soffit",null,"B_BF_Soffit",null,"BF_B_Soffit",null,"BF_BF_Soffit",null,"F_B_Soffit",null,"F_BF_Soffit"]
[null,null,null,"Qbiss Screen H - B-B - Soffit","Note","Qbiss Screen H - B-BF - Soffit","Note","Qbiss Screen H - BF-B - Soffit","Note","Qbiss Screen MW - BF-BF - Soffit","Note","Qbiss Screen MW - F-B - Soffit","Note","Qbiss Screen MW - F-BF - Soffit","Note"]
[]
[]
[]
["Primer šifre SAP",null,null,"Q100-1200 9006 PVDF 070/9006 SP 055-KT\nPROFIL HF40 RAL 9006 PVDF 13.1x20 AL\nProfil HF 14 v sklopu panela na linij!",null,"Q100-1200 9006 PVDF 070/9006 SP 055-KT\nPROFIL HF52 RAL9006 PVDF 34.1x21 AL\nProfil HF 14 v sklopu panela na linij!",null,"Q100-1200 9006 PVDF 070/9006 SP 055-KT\nPROFIL HF40 RAL 9006 PVDF 13.1x20 AL\nProfil HF 55 v sklopu panela na linij!",null,"Q100-1200 9006 PVDF 070/9006 SP 055-KT\nPROFIL HF52 RAL9006 PVDF 34.1x21 AL\nProfil HF 55 v sklopu panela na linij!",null,"QFB100-1060 9006 PVDF 70/9002 SP50-KT\nPROFIL HF40 RAL 9006 PVDF 13.1x20 AL\nNi profila v sklopu panela na linij!",null,"QFB100-1060 9006 PVDF 70/9002 SP50-KT\nPROFIL HF52 RAL9006 PVDF 34.1x21 AL\nNi profila v sklopu panela na linij!"]
[]
["Wind_load_fixing_screw","pcs",null,"Type of screw depends on the material of the substructure (wind load)","NOT included in element price; quantity of screws according to structural calculation; dimension of screw is based on element module and thickness of steel (sub)structure ","Type of screw depends on the material of the substructure (wind load)","NOT included in element price; quantity of screws according to structural calculation; dimension of screw is based on element thickness and thickness of steel (sub)structure ","Type of screw depends on the material of the substructure (wind load)","NOT included in element price; quantity of screws according to structural calculation; dimension of screw is based on element thickness and thickness of steel (sub)structure ","Type of screw depends on the material of the substructure (wind load)","NOT included in element price; quantity of screws according to structural calculation; dimension of screw is based on element thickness and thickness of steel (sub)structure ","Type of screw depends on the material of the substructure (wind load)","NOT included in element price; quantity of screws according to structural calculation; dimension of screw is based on element thickness and thickness of steel (sub)structure ","Type of screw depends on the material of the substructure (wind load)","NOT included in element price; quantity of screws according to structural calculation; dimension of screw is based on element thickness and thickness of steel (sub)structure "]
["Self_weight_fixing_screw","pcs",null,"Type of screw depends on the material of the substructure (self weight load)","NOT included in element price; suggested quantity of screws 8 pcs per each facade element.","Type of screw depends on the material of the substructure (self weight load)","NOT included in element price; suggested quantity of screws 8 pcs per each facade element.","Type of screw depends on the material of the substructure (self weight load)","NOT included in element price; suggested quantity of screws 8 pcs per each facade element.","Type of screw depends on the material of the substructure (self weight load)","NOT included in element price; suggested quantity of screws 8 pcs per each facade element.","Type of screw depends on the material of the substructure (self weight load)","NOT included in element price; suggested quantity of screws 8 pcs per each facade element.","Type of screw depends on the material of the substructure (self weight load)","NOT included in element price; suggested quantity of screws 8 pcs per each facade element."]
["Silicone_Transversal_Gasket","m",null,"T052\n30030237\ncut to size for brick","included in element price; quantity of transversal (horizontal) joint","T052\n30014372\ncut to size for brick","included in element price; quantity of transversal (vertical) joint","T052\n30014372\ncut to size for brick","included in element price; quantity of transversal (vertical) joint","T052\n30014372\ncut to size for brick","included in element price; quantity of transversal (vertical) joint","T052\n30014372\ncut to size for brick","included in element price; quantity of transversal (vertical) joint","T052\n30014372\ncut to size for brick","included in element price; quantity of transversal (vertical) joint"]
["Decorative_ALU_extrusion","m",null,"A023 (HF64)\nSAP code colour specific\ncut to size for brick","included in element price; quantity of transversal (horizontal) joint; supplied in 6,5 m lenghts; specify color","A023 (HF40)\nSAP code colour specific\ncut to size for brick","included in element price; quantity of transversal (vertical) joint; supplied in 4 m lenghts; specify color","A023 (HF40)\nSAP code colour specific\ncut to size for brick","included in element price; quantity of transversal (vertical) joint; supplied in 4 m lenghts; specify color","A023 (HF40)\nSAP code colour specific\ncut to size for brick","included in element price; quantity of transversal (vertical) joint; supplied in 4 m lenghts; specify color","A023 (HF40)\nSAP code colour specific\ncut to size for brick","included in element price; quantity of transversal (vertical) joint; supplied in 4 m lenghts; specify color","A023 (HF40)\nSAP code colour specific\ncut to size for brick","included in element price; quantity of transversal (vertical) joint; supplied in 4 m lenghts; specify color"]
["Installation_Kit_Package_includes_spacer_crosses_wooden_pad_spray_with_soapy_water_and_installation_manual","m",null,"Installation Kit Package HR Basic            SAP: 30030778","included in element price; quantity 1 pcs per order plus additional 1 pcs for each 500 m2","PAKET MONTAŽNI QBISS SCREEN H 30029187\n","included in element price; quantity 1 pcs per order plus additional 1 pcs for each 500 m2","PAKET MONTAŽNI QBISS SCREEN H 30029187\n","included in element price; quantity 1 pcs per order plus additional 1 pcs for each 500 m2","PAKET MONTAŽNI QBISS SCREEN H 30029187\n","included in element price; quantity 1 pcs per order plus additional 1 pcs for each 500 m2","PAKET MONTAŽNI QBISS SCREEN H 30029187\n","included in element price; quantity 1 pcs per order plus additional 1 pcs for each 500 m2","PAKET MONTAŽNI QBISS SCREEN H 30029187\n","included in element price; quantity 1 pcs per order plus additional 1 pcs for each 500 m2"]
["EPDM_cube_Gasket_26x26x30","pcs",null,"T022\nSAP: 30007025","NOT included in element price; quantity as per details","T022\n30007025","NOT included in element price; quantity as per details","T022\n30007025","NOT included in element price; quantity as per details","T022\n30007025","NOT included in element price; quantity as per details","T022\n30007025","NOT included in element price; quantity as per details","T022\n30007025","NOT included in element price; quantity as per details"]
["Fixing_profile_HF63_wind_load","pcs",null,"N637                           SAP:81006837","Included in element price, depending on type of element, any additional elements required  for i.e. connection to other façade system not included, quantity subject to design information ","N637\n30006944","Included in element price, depending on type of element, any additional elements required  for i.e. connection to other façade system not included, quantity subject to design information ","N637\n30006944","Included in element price, depending on type of element, any additional elements required  for i.e. connection to other façade system not included, quantity subject to design information ","N637\n30006944","Included in element price, depending on type of element, any additional elements required  for i.e. connection to other façade system not included, quantity subject to design information ","N637\n30006944","Included in element price, depending on type of element, any additional elements required  for i.e. connection to other façade system not included, quantity subject to design information ","N637\n30006944","Included in element price, depending on type of element, any additional elements required  for i.e. connection to other façade system not included, quantity subject to design information "]
["Mastic_seal_Polysiloxane_based_required_for_EPDM_cube_and_internal_joint_sealing","m",null,"SAP: 30024285","NOT included in price - quantity as required by installer","SAP: 30024285","NOT included in price - quantity as required by installer","SAP: 30024285","NOT included in price - quantity as required by installer","SAP: 30024285","NOT included in price - quantity as required by installer","SAP: 30024285","NOT included in price - quantity as required by installer","SAP: 30024285","NOT included in price - quantity as required by installer"]
["Electrochemical_potential_insulation_tape_self_adhesive_PE_or_EPDM_dimension_05x100_120 ","pcs",null,null,"NOT included in price - quantity as required by installer",null,"NOT included in price - quantity as required by installer",null,"NOT included in price - quantity as required by installer",null,"NOT included in price - quantity as required by installer",null,"NOT included in price - quantity as required by installer",null,"NOT included in price - quantity as required by installer"]
["EMPTY"]
[]
[]
[]
[]
[]
[]
[]
[]
[]
[]
[]
[]
[]
[]
[]
[]
[]
[]
[]
[]
[]
[null,null,null,"ODKAPNIK SPODAJ 31X38X66 EPDM",null,30006438]
[null,null,null,"ODKAPNIK SPODAJ 31X38X66 EPDM",null,602247]
[null,null,null,"ODKAPNIK SPODAJ QB 32X22X176 NER (01046)",null,30027664]
[null,null,null,"ODKAPNIK SPODAJ QF 7X44X70 NER. (01256)",null,30025355]
[null,null,null,"ODKAPNIK SPOJA 3-PAN.-OPEČNA  3.7X44X92",null,30007027]
[null,null,null,"ODKAPNIK SPOJA 4-PAN.HORIZ. QFB 3X44X140",null,30025013]
[null,null,null,"ODKAPNIK SPOJA 4-PANELOV FUSION 7X44X119",null,30012038]
[null,null,null,"ODKAPNIK SPOJA 4-PANELOV HORIZ. 3X44X156",null,30006439]
[null,null,null,"ODKAPNIK SPOJA 4-PANELOV HORIZ. 3X44X156",null,30014945]
[null,null,null,"ODKAPNIK SPOJA 4-PANELOV HORIZ. 3X44X156",null,602244]
[null,null,null,"ODKAPNIK TESNILA 50X60 NER. QF (01259)",null,30026913]
[null,null,null,"ODKAPNIK TESNILA 50X85 NER. QB (0655)",null,30026912]
[]
[]
[]
[]
[null,null,null,"PAKET MONTAŽNI MALI QBISS BRICK",null,30018303]
[null,null,null,"PAKET MONTAŽNI MALI QBISS FUSION",null,30012195]
[null,null,null,"PAKET MONTAŽNI MALI QBISS HORIZONTAL",null,30007109]
[]
[null,null,null,"PAKET MONTAŽNI MALI QBISS VERTICAL",null,30030437]
[]
[]
[null,null,null,"PAKET MONTAŽNI QBISS SCREEN H",null,30029187]
[null,null,null,"PAKET MONTAŽNI QBISS SCREEN H FB",null,30029188]

{"sheet":"UPDATES","index":9,"n_rows":2,"n_cols":2,"rows_kept":2,"cut":false,"hidden":true,"merged":[]}
["Version","What is new"]
["1.0","Release"]

{"sheet":"Data 1","index":10,"n_rows":148,"n_cols":17,"rows_kept":148,"cut":false,"hidden":true,"merged":[[146,1,146,5],[147,1,147,5]]}
["Data"]
["Type of cladding  system","System"]
["Horizontal"]
["Vertical_internal_wall"]
["Horizontal_brick"]
["Horizontal_asymmertical_brick"]
["Vertical_brick_internal_wall"]
[]
[]
["Joint","Horizontal","Vertical_internal_wall","Horizontal_brick","Vertical_brick_internal_wall","Horizontal_asymmetrical_brick"]
["B-B","B-B","B-B","B-B","B-B","B-B"]
["F-B","F-B",null,"F-B",null,"F-B"]
[]
[]
[]
[]
[]
["Joint","Horizontal","Vertical_internal_wall","Horizontal_brick","Vertical_brick_internal_wall","Horizontal_asymmetrical_brick","Soffit"]
["B-B","B_B_Horizontal","B_B_Vertical","B_B_Horizontal_brick","B_B_Vertical_brick","B_B_Horizontal_asymmetrical_brick","B_B_Soffit"]
["B-BF","B_BF_Horizontal","B_BF_Vertical","B_BF_Horizontal_brick","B_BF_Vertical_brick","B_BF_Horizontal_asymmetrical_brick","B_BF_Soffit"]
["BF-B","BF_B_Horizontal","BF_B_Vertical","BF_B_Horizontal_brick","BF_B_Vertical_brick","BF_B_Horizontal_asymmetrical_brick","BF_B_Soffit"]
["BF-BF","BF_BF_Horizontal","BF_BF_Vertical","BF_BF_Horizontal_brick","BF_BF_Vertical_brick","BF_BF_Horizontal_asymmetrical_brick","B_B_Soffit"]
["F-B","F_B_Horizontal",null,"F_B_Horizontal_brick",null,"F_B_Horizontal_asymmetrical_brick","F_B_Soffit"]
["F-BF","F_BF_Horizontal",null,"F_BF_Horizontal_brick",null,"F_BF_Horizontal_asymmetrical_brick","F_BF_Soffit"]
[]
[]
["Joint","Picture"]
[{"$f":"B19","v":"B_B_Horizontal"}]
["B_BF_Horizontal"]
["BF_B_Horizontal"]
["BF_BF_Horizontal"]
["F_B_Horizontal"]
["F_BF_Horizontal"]
[{"$f":"C19","v":"B_B_Vertical"}]
[{"$f":"C20","v":"B_BF_Vertical"}]
[{"$f":"C21","v":"BF_B_Vertical"}]
[{"$f":"C22","v":"BF_BF_Vertical"}]
[{"$f":"D19","v":"B_B_Horizontal_brick"}]
["B_BF_Horizontal_brick"]
["BF_B_Horizontal_brick"]
["BF_BF_Horizontal_brick"]
["F_B_Horizontal_brick"]
["F_BF_Horizontal_brick"]
[{"$f":"E19","v":"B_B_Vertical_brick"}]
[{"$f":"E20","v":"B_BF_Vertical_brick"}]
[{"$f":"E21","v":"BF_B_Vertical_brick"}]
[{"$f":"E22","v":"BF_BF_Vertical_brick"}]
[{"$f":"F19","v":"B_B_Horizontal_asymmetrical_brick"}]
["B_BF_Horizontal_asymmetrical_brick"]
["BF_B_Horizontal_asymmetrical_brick"]
["BF_BF_Horizontal_asymmetrical_brick"]
["F_B_Horizontal_asymmetrical_brick"]
["F_BF_Horizontal_asymmetrical_brick"]
["B_B_Soffit","Slika manjka"]
["B_BF_Soffit","Slika manjka"]
["BF_B_Soffit","Slika manjka"]
["B_B_Soffit","Slika manjka"]
["F_B_Soffit","Slika manjka"]
["F_BF_Soffit","Slika manjka"]
[]
[]
[]
["L-corner elements","Vertical",null,null,"Horizontal"]
[]
["Type of assembly"]
["No_selection"]
[null,null,null,null,"Transversal_corner"]
["Longitudinal_corner"]
[]
[]
["Joint","Transversal_corner","Longitudinal_corner","No_selection"]
[null,"B-B","B-B","No_selection"]
[null,"B-BF","B-BF"]
[null,"BF-B","BF-B"]
[null,"BF-BF","BF-BF"]
[null,"F-B"]
[null,"F-BF"]
[]
[]
["Joint","Transversal_corner","Longitudinal_corner","No_selection"]
["B-B","B_B_Transversal_corner","B_B_Longitudinal_corner"]
["B-BF","B_BF_Transversal_corner","B_BF_Longitudinal_corner"]
["BF-B","BF_B_Transversal_corner","BF_B_Longitudinal_corner"]
["BF-BF","BF_BF_Transversal_corner","BF_BF_Longitudinal_corner"]
["F-B","F_B_Transversal_corner"]
["F-BF","F_BF_Transversal_corner"]
["No_selection",null,null,"No_selection1"]
[]
[]
["B_B_Transversal_corner"]
["B_BF_Transversal_corner"]
["BF_B_Transversal_corner"]
["BF_BF_Transversal_corner"]
["F_B_Transversal_corner"]
["F_BF_Transversal_corner"]
["B_Longitudinal_corner"]
["B_BF_Longitudinal_corner"]
["BF_B_Longitudinal_corner"]
["BF_BF_Longitudinal_corner"]
["No_selection1"]
[]
[]
["Element type","Horizontal","Vertical","Horizontal_brick","Vertical_brick","Horizontal_asymmetrical_brick","Soffit",null,null,null,null,"Corner_and_curved",null,null,null,"Longitudinal1","Transversal1"]
[]
[null,1,1,1,1,1,1,null,null,null,null,1,null,null,null,1,1]
[null,2,3,2,3,2,2,null,null,null,null,2,null,null,null,3,2]
[null,3,5,3,5,3,3,null,null,null,null,3,null,null,null,5,3]
[null,4,7,4,7,4,4,null,null,null,null,4,null,null,null,6,4]
[null,5,8,5,8,5,5,null,null,null,null,5,null,null,null,7,5]
[null,6,9,6,9,6,6,null,null,null,null,6,null,null,null,8,6]
[null,7,null,7,null,7,7,null,null,null,null,7,null,null,null,9,7]
[null,8,null,8,null,8,8,null,null,null,null,8,null,null,null,null,8]
[null,9,null,9,null,9,9,null,null,null,null,9,null,null,null,null,9]
[]
[]
[]
[]
[]
[]
["Curved elements"]
[]
["Curved elements type"]
["No_selection"]
["Longitudinal"]
["Transversal"]
[]
[]
["U_corner_element"]
["No_selection"]
["U_corner_element"]
[]
[]
[]
[]
[]
["U_corner_joint_possibilities"]
["No_selection"]
["B"]
["B_BF"]
["BF_B"]
["BF_BF"]
["F_B"]
["F_BF"]
[]
[]
["Curved_elements_section"]
["Longitudinal_"]
["Transversal_"]

{"sheet":"Data 2","index":11,"n_rows":99,"n_cols":14,"rows_kept":99,"cut":false,"hidden":true,"merged":[]}
["External colour","External coating",null,null,"Internal colour","Internal coating",null,null,"Thickness of external steel sheet",null,null,null,null,"External steel sheet profilation"]
[null,null,null,null,null,null,null,null,0.7,null,null,null,null,"G"]
["White","PUR-PA 50",null,null,"RAL 9010","SP 25"]
["Grey White","PUR-PA 50",null,null,"RAL 9002","PVDF 25"]
["Cream","PUR-PA 50",null,null,"RAL 1015","PVDF 35",null,null,"Thickness of internal steel sheet"]
["Light Grey","PUR-PA 50",null,null,"RAL7035","PUR/PA 50"]
["Bright Yellow","PUR-PA 50",null,null,"RAL 7038","HPS 200",null,null,0.7]
["Basalt Grey","PUR-PA 50",null,null,"RAL 7046","PRISMA",null,null,0.67500000000000004]
["Sapphire Blue","PUR-PA 50",null,null,"RAL 9006","INOX 304"]
["Traffic Red","PUR-PA 50",null,null,"RAL 9007","RAL 9001 PVCF 150"]
["Anthracite","PUR-PA 50",null,null,"RAL 3020","RAL 9003 PVCF 120"]
["Black","PUR-PA 50",null,null,"RAL 6005","RAL 9010 PVCF 150"]
["Light Silver","PUR-PA 50",null,null,"RAL 5010","Other"]
["Dark Silver","PUR-PA 50",null,null,"RAL 7016"]
["Light Graphite","PUR-PA 50",null,null,"White","PUR-PA 50"]
["Seren Anthracite","PVDF 40",null,null,"Grey White","PUR-PA 50"]
["Seren White","PVDF 40",null,null,"Cream","PUR-PA 50"]
["Seren Silver","PVDF 40",null,null,"Light Grey","PUR-PA 50"]
["Seren Gold","PVDF 40",null,null,"Bright Yellow","PUR-PA 50"]
["Seren Copper","PVDF 40",null,null,"Basalt Grey","PUR-PA 50"]
["Seren Black","PVDF 40",null,null,"Sapphire Blue","PUR-PA 50"]
["Seren Midas","PVDF 40",null,null,"Traffic Red","PUR-PA 50"]
["Sirius Sparkle","PVDF 40",null,null,"Anthracite","PUR-PA 50"]
["Orion Sparkle","PVDF 40",null,null,"Black","PUR-PA 50"]
["Zeus Sparkle","PVDF 40",null,null,"Light Silver","PUR-PA 50"]
["Other",null,null,null,"Silver","PUR-PA 50"]
[null,null,null,null,"Dark Silver","PUR-PA 50"]
[null,null,null,null,"Light Graphite","PUR-PA 50"]
[null,null,null,null,"Seren Anthracite","PVDF 40"]
[null,null,null,null,"Seren White","PVDF 40"]
[null,null,null,null,"Seren Silver","PVDF 40"]
[null,null,null,null,"Seren Gold","PVDF 40"]
[null,null,null,null,"Seren Copper","PVDF 40"]
[null,null,null,null,"Seren Black","PVDF 40"]
[null,null,null,null,"Seren Midas","PVDF 40"]
[null,null,null,null,"Sirius Sparkle","PVDF 40"]
[null,null,null,null,"Orion Sparkle","PVDF 40"]
[null,null,null,null,"Zeus Sparkle","PVDF 40"]
[null,null,null,null,"Quadro Lucido","INOX"]
[null,null,null,null,"Dots Lucido","INOX"]
[null,null,null,null,"2WL Lucido","INOX"]
[null,null,null,null,"5WL Lucido","INOX"]
[null,null,null,null,"Pelle Lucido","INOX"]
[null,null,null,null,"Other"]
[]
[]
[]
[]
[]
[]
[]
[]
[]
["Transport"]
[]
["Transport type"]
["No_selection"]
["Truck"]
["Ship_containers"]
["Train"]
["Air_transport"]
[]
[]
["Type of packaging"]
["No selection"]
["Standard packaging"]
["Extended packaging"]
[]
[]
["Additional packaging elements"]
["Lifting bands"]
["No selection"]
["YES"]
["NO"]
[]
["Reinforcement pallets"]
["No selection"]
["YES"]
["NO"]
[]
["EPS support blocks"]
["No selection"]
["YES "]
["NO"]
[]
[]
[]
["Certificate requirement"]
["None"]
["FM approval"]
["CSTB France"]
["LPCB UK Insurance approval"]
["Ü (Zulassung) Germany"]
["BREEAM"]
["BREEAM Netherland"]
["LEED"]
["FOOD SAFE"]
["DGNB"]
["Other"]